Cogmind - Beta 16 @@@ ROGUE MODE // 2025.10.21 @ 20:00:39 Player: szymekc Result: Establishing 0b11! Performance ------------- Evolutions (9) 4500 Regions Visited (31) 6200 Robots Destroyed (462) 2310 Value Destroyed (24450) 24450 Prototype IDs (373) 7460 Alien Tech Used (9) 1800 Bonus (56602) 56602 TOTAL SCORE: 103322 Bonus ------- High Alert Combat Kills 2405 Follower Combat Kills 2890 Destroyed Unchained 2000 Network Hubs Disabled 400 Registered with UFD 300 Met Optimus in HQ 500 Met Warlord at Base 500 MAIN.C Attacked Warlord 500 Warlord Defense Kills 4060 Built Enhanced Grunts 300 A7 Reached Mainframe 300 Met R17 at Cetus 500 Found Hidden Lab 3000 Destroyed MAIN.C Guards 500 Met MAIN.C 5000 Destroyed MAIN.C Shell 5000 Destroyed MAIN.C 10000 Met Architect 300 Destroyed A8 300 Destroyed A6 400 Destroyed A5 500 Destroyed A4 700 Destroyed A3 800 Destroyed A2 1000 Destroyed Architect 15000 Win 3000 Friendly Fire -3553 Cogmind --------- Core Integrity 988/1600 Matter 254/300 Energy 1123/1140 System Corruption 8% Temperature Cool (8) Movement Hovering (29) Location 0b11 Command Parts ------- > --- POWER (2) -------- Concept Zero-point Core Concept Zero-point Core > --- PROPULSION (8) --- Combat Antigrav System Cooled Linear Gravjet Cooled Linear Gravjet Experimental Antigrav System Concept Combat Aerolev Unit Concept Combat Aerolev Unit Concept Gyrokinetic System Concept Gyrokinetic System > --- UTILITY (13) ----- Concept Thermoelectric Network Concept Antigrav Storage Unit Concept Chromion Battery Spectral Analyzer Experimental Target Analyzer Experimental Target Analyzer Experimental Core Analyzer Improved Armor Integrity Analyzer Experimental Weapon Cycler Heavy Regenerative Plating Concept Beam Splitter Advanced Force Field > --- WEAPON (2) ------- Hypervelocity Multirail Concept Miniperforator > --- INVENTORY (25) --- Zero-point Reactor Zero-point Reactor Combat Antigrav System Cooled Linear Gravjet Cooled Linear Gravjet Concept Phasing Heat Sink Experimental Coolant Injector Experimental Energy Well (600) Concept NT7 Matterbank (750) Long-range Terrain Scanner Mini Quantum Capacitor Concept Phase Shift Module Centrium Heavy Armor Plating Graphene Brace Enhanced Gamma Rifle Cooled Nova Cannon Null Cannon Concept Plasma Driver Multirail Concept Heavy Railcannon Peak State ------------ > --- POWER ------------ Concept Zero-point Core Concept Zero-point Core > --- PROPULSION ------- Gravjet Array Gravjet Array Concept Combat Aerolev Unit Concept Combat Aerolev Unit Concept Gyrokinetic System Concept Gyrokinetic System > --- UTILITY ---------- Concept Antigrav Storage Unit Spectral Analyzer Zeronet Interface Concept Weapon Articulator Concept Core Analysis Suite Advanced Weapon Cycler Experimental Reaction Control System Concept Phase Shift Module Concept Cloak Mesh Concept Cloak Mesh SHELL Armor > --- WEAPON ----------- Cooled Nova Cannon Hypervelocity Multirail > --- INVENTORY -------- Zero-point Reactor Zero-point Reactor Experimental Antigrav System Experimental Antigrav System Concept Phasing Heat Sink Concept Thermoelectric Network Concept Chromion Battery Concept NT7 Matterbank Long-range Terrain Scanner Mini Quantum Capacitor Experimental Reaction Control System Improved Focal Shield Concept Beam Splitter Improved Point Defense System Concept Impact Drone Bay Concept Impact Drone Bay Transdimensional Reconstructor High-powered Transdimensional Reconstructor Enhanced Gamma Rifle Warp Cannon Concept Plasma Driver Concept Miniperforator Concept Heavy Railcannon [Rating: 309] Favorites ----------- Power Concept Zero-point Core Engine Cooled Ion Engine Power Core Concept Zero-point Core Reactor Micro Antimatter Reactor Propulsion Light Treads Treads Light Treads Hover Unit Concept Gyrokinetic System Flight Unit Cooled VTOL Module Utility High-capacity Storage Unit Device Advanced Sensor Array Storage High-capacity Storage Unit Processor Advanced Visual Processing Unit Hackware Advanced Hacking Suite Protection Medium Regenerative Plating Weapon Advanced Beam Cannon Energy Gun Small Laser Energy Cannon Advanced Beam Cannon Ballistic Gun Hypervelocity Gauss Rifle Ballistic Cannon Light Cannon Launcher Rocket Array Special Weapon Mining Laser Slashing Weapon Chainsword Piercing Weapon Plasma Lance Build | -11 -10 -10 -9 -9 -8 -8 -8 -8 -6 -6 -6 -6 -6 -6 -6 -5 -5 -5 -5 -4 -4 -4 -4 -3 -3 -2 -2 -2 -1 -1 -1 ------- Run | Yrd Mat Min Mat Min Mat Sto Rec Scr Fac Was Fac Ext Cet Arc Hub Fac Upp Upp War Pro Fac Arm Lab Res Tes Res Qua Frg Acc Com Ac0 Slots Evolved 18 | . . . 2 . 2 . . . 4 . . . . . . 2 . . . . 2 . . 2 . 2 . . 2 . . Power 1 | . . . . . . . . . . . . . . . . 1 . . . . . . . . . . . . . . . Propulsion 6 | . . . 1 . 1 . . . 1 . . . . . . 1 . . . . . . . 1 . 1 . . . . . Utility 11 | . . . 1 . 1 . . . 3 . . . . . . . . . . . 2 . . 1 . 1 . . 2 . . Weapon . | . . . . . . . . . . . . . . . . . . . . . . . . . . . . . . . . Parts Attached 364 | 8 13 5 28 1 28 15 3 4 32 4 7 4 7 1 4 19 . 1 16 . 10 14 3 30 11 7 15 40 8 17 9 Power 41 | 2 1 3 3 . 2 1 2 1 1 1 . 1 1 . . 4 . . 3 . 2 3 . 3 1 . 3 2 1 . . Engine 14 | 2 1 3 3 . 2 1 1 1 . . . . . . . . . . . . . . . . . . . . . . . Core 13 | . . . . . . . . . 1 1 . 1 . . . 3 . . 1 . 2 . . . . . 1 2 1 . . Reactor 14 | . . . . . . . 1 . . . . . 1 . . 1 . . 2 . . 3 . 3 1 . 2 . . . . Propulsion 91 | 2 1 . 11 . 11 6 1 . 9 . 2 . . . . 5 . . 3 . 3 3 . 11 1 3 2 12 . 3 2 Treads 30 | 2 1 . 10 . 10 6 1 . . . . . . . . . . . . . . . . . . . . . . . . Leg . | . . . . . . . . . . . . . . . . . . . . . . . . . . . . . . . . Wheel . | . . . . . . . . . . . . . . . . . . . . . . . . . . . . . . . . Hover 15 | . . . . . . . . . . . . . . . . . . . . . . . . . . . . 10 . 3 2 Flight 46 | . . . 1 . 1 . . . 9 . 2 . . . . 5 . . 3 . 3 3 . 11 1 3 2 2 . . . Utility 154 | 2 6 . 7 1 6 3 . 2 19 2 3 2 4 1 3 6 . . 7 . 4 4 2 9 6 4 9 18 6 12 6 Device 86 | 2 3 . 4 1 4 . . . 7 1 1 1 1 1 1 3 . . 4 . 1 3 1 7 2 2 7 13 5 8 3 Storage 14 | . 3 . 1 . . . . 1 1 . . . 1 . . . . . . . . . . 2 2 1 . 1 . 1 . Processor 21 | . . . . . . 1 . . 2 1 . . . . . 1 . . 3 . 2 1 . . . 1 2 2 1 2 2 Hackware 14 | . . . . . . . . . 8 . . . . . 2 2 . . . . 1 . 1 . . . . . . . . Protection 19 | . . . 2 . 2 2 . 1 1 . 2 1 2 . . . . . . . . . . . 2 . . 2 . 1 1 Artifact . | . . . . . . . . . . . . . . . . . . . . . . . . . . . . . . . . Weapon 78 | 2 5 2 7 . 9 5 . 1 3 1 2 1 2 . 1 4 . 1 3 . 1 4 1 7 3 . 1 8 1 2 1 Energy Gun 5 | 1 . 1 1 . . . . . . . . . . . . . . . . . . . . . . . . 2 . . . Energy Cannon 18 | . . . 3 . 2 2 . 1 2 . . . . . . 1 . . . . . . 1 2 1 . . 1 . 2 . Ballistic Gun 18 | 1 2 1 1 . 3 2 . . . . 2 . 2 . 1 . . . . . . . . . 1 . . 1 . . 1 Ballistic Cannon 9 | . 2 . . . . . . . . . . . . . . 1 . . 1 . 1 2 . . . . . 1 1 . . Launcher 11 | . 1 . 1 . 2 1 . . . 1 . . . . . . . . . . . 1 . 1 1 . . 2 . . . Special Weapon 3 | . . . 1 . . . . . . . . 1 . . . . . 1 . . . . . . . . . . . . . Impact Weapon . | . . . . . . . . . . . . . . . . . . . . . . . . . . . . . . . . Slashing Weapon 8 | . . . . . 2 . . . 1 . . . . . . 2 . . . . . . . 2 . . 1 . . . . Piercing Weapon 6 | . . . . . . . . . . . . . . . . . . . 2 . . 1 . 2 . . . 1 . . . Special Melee Weapon . | . . . . . . . . . . . . . . . . . . . . . . . . . . . . . . . . Unidentified Prototypes 77 | . . . 6 1 3 1 1 . 4 . 1 . 6 . . 4 . . 9 . 2 1 5 8 7 2 6 6 . 3 1 Corrupted Parts 2 | . . . . . . . . . . . . . . . . . . . . . . . . . . . . . . 2 . System Corruption 12 | . . . . . . . . . . . . . . . . . . . . . . . . . . . . . . 12 . Parts Lost 46 | . 3 . 2 . 1 . . . 2 . 1 . . . 3 . . . 3 . 9 3 . . 1 3 1 7 1 3 3 Power 6 | . . . . . . . . . . . . . . . . . . . . . 2 1 . . . 1 1 1 . . . Propulsion 13 | . 1 . 1 . . . . . . . 1 . . . 2 . . . 2 . 3 . . . . . . 2 . . 1 Utility 23 | . 1 . 1 . 1 . . . 2 . . . . . 1 . . . 1 . 3 2 . . 1 2 . 2 1 3 2 Weapon 4 | . 1 . . . . . . . . . . . . . . . . . . . 1 . . . . . . 2 . . . Highest Loss Streak 6 | . 1 . 1 . 1 . . . 1 . 1 . . . 2 . . . 2 . 6 3 . . 1 2 1 3 1 2 1 To Critical Strikes 2 | . . . . . . . . . . . . . . . . . . . . . 2 . . . . . . . . . . Average Backups 14 | 1 10 19 19 20 19 20 19 18 6 6 6 7 6 7 7 9 10 9 9 10 8 8 7 8 11 11 12 15 22 22 22 Power 1 | . 1 1 1 1 2 1 1 1 . 1 1 1 . 1 1 . . . . . . . . . . . . . 1 2 2 Propulsion 1 | . . 1 2 6 3 4 5 5 . 1 . . . . . . 1 1 1 1 . 2 . . 1 . . 1 1 1 2 Utility 5 | . 2 5 5 6 8 8 8 8 3 2 2 2 1 3 2 3 3 3 3 4 3 1 1 1 3 4 3 6 12 11 10 Weapon 5 | 1 6 11 10 7 6 5 5 4 1 1 2 3 2 2 2 4 5 4 4 5 5 4 5 5 5 5 5 5 5 5 5 Tool/Special . | . . . . . . . . . . . . . . . . . . . . . . . . . . . . . . . . Unused Backups 58 | . . 4 11 . 7 4 . . 2 . . . 1 . 1 2 . . . . . 6 1 . 1 . 2 2 . 2 12 Power 8 | . . 1 . . . 2 . . 1 . . . . . . . . . . . . 2 . . . . . . . . 2 Propulsion 12 | . . . 1 . 1 2 . . . . . . . . . . . . . . . 4 . . . . . 1 . . 3 Utility 17 | . . 1 2 . 1 . . . . . . . . . 1 2 . . . . . . . . . . 1 1 . 2 6 Weapon 20 | . . 2 8 . 5 . . . 1 . . . 1 . . . . . . . . . 1 . 1 . . . . . 1 Tool/Special 1 | . . . . . . . . . . . . . . . . . . . . . . . . . . . 1 . . . . Average Slot Usage (%) 93 | . 99 100 99 100 99 99 99 93 89 92 98 100 100 99 99 85 88 88 92 94 86 79 82 89 92 93 84 79 87 82 91 Engine 4 | . 14 14 11 11 9 9 9 9 . . . . . . . . . . . . . . . . . . . . . . . Core 1 | . . . . . . . . . . . . . . . . 5 5 5 3 . . 2 . . . . 2 5 8 8 8 Reactor 2 | . . . . . . . . . 5 6 6 5 6 6 6 4 5 5 7 11 8 3 5 8 9 7 4 1 . . . Treads 14 | . 27 28 33 33 35 36 36 36 . . . . . . . . . . . . . . . . . . . . . . . Hover 4 | . . . . . . . . . . . . . . . . . . . . . . . . . . . . 15 28 24 29 Flight 12 | . . . . . . . . . 30 33 33 33 33 33 32 24 29 29 28 29 25 26 26 26 28 29 26 11 . . . Device 17 | . 14 14 21 22 17 16 18 14 11 19 19 20 20 19 13 9 5 5 10 11 13 16 15 16 16 14 20 21 23 29 21 Storage 7 | . 12 14 11 11 9 9 9 12 6 6 6 6 6 6 6 5 5 5 5 5 5 4 5 4 4 4 4 4 4 4 5 Processor 7 | . . . . . . 2 9 9 10 13 13 13 13 13 13 12 17 17 11 11 10 11 15 14 14 15 10 5 10 7 14 Hackware 2 | . . . . . . . . . 15 6 1 . . . 10 7 5 5 5 5 8 4 4 4 4 4 4 1 . . . Protection 3 | . . . . . 9 8 . . . . 5 6 5 6 1 2 5 5 4 5 3 4 4 3 4 8 4 4 6 4 5 Energy Cannon 4 | . . . 14 21 11 13 . . . . . . . . . . . . . 1 1 . . . . . . . 3 5 2 Ballistic Gun 4 | . 16 7 6 . 4 1 17 3 . . 6 12 8 6 6 . . . . . . . . . . . . 2 3 . 1 Ballistic Cannon 1 | . 8 16 . . . . . . . . . . . . . . . . 3 . . . . . . . . . 1 . 1 Slashing Weapon 2 | . . . . . 1 2 . 9 6 4 4 . 3 6 5 6 5 5 5 3 . 1 5 5 8 8 5 2 . . . Peak Build Rating 309 | 9 10 19 24 33 40 36 37 31 65 68 77 79 87 87 90 103 101 100 128 128 135 127 126 172 175 188 207 280 305 309 293 Average Rating 95 | 5 9 12 21 22 34 31 31 28 56 62 74 78 83 86 85 87 95 95 116 127 124 112 120 155 164 184 193 219 298 287 279 On Entrance 98 | . 9 9 19 23 23 36 32 28 29 56 63 76 79 87 87 80 95 95 95 127 127 109 103 123 158 169 164 204 280 298 276 Avg Prop Armor Cover (%) 3 | . . . . . . . . . . . . . . 6 . 2 . . . . . . . . . . . . . . . Naked Turns . | . . . . . . . . . . . . . . . . . . . . . . . . . . . . . . . . Heaviest Build 134 | 10 52 58 61 59 74 66 57 63 25 28 35 37 41 41 42 43 36 36 58 57 56 63 41 53 62 60 63 134 128 125 129 Greatest Support 130 | 40 40 40 63 63 89 86 80 80 32 37 38 38 42 42 53 59 36 36 66 57 57 39 37 57 65 63 63 130 130 130 128 Greatest Overweight (x) 13 | . 1 1 1 . . . . . 1 . . . . 13 1 . . . 1 . 1 1 1 1 . . . 1 . 1 1 Average Overweight (x) . | . . 1 . . . . . . . . . . . 6 . . . . . . . . . . . . . . . . . Largest Inventory Capacity 25 | 5 20 20 20 20 20 20 20 20 20 10 10 10 10 10 10 10 10 10 10 10 10 10 10 15 15 15 15 25 25 25 25 Average Capacity 16 | 5 14 20 20 20 20 20 20 20 10 10 10 10 10 10 10 10 10 10 10 10 10 9 10 10 15 15 15 18 25 25 25 Most Carried 25 | 4 20 20 20 20 20 20 20 20 20 10 10 10 10 10 10 10 10 10 10 10 10 10 10 13 15 15 15 25 25 25 25 Average Carried 15 | 1 10 19 19 20 19 19 19 19 9 9 9 10 9 9 9 9 9 9 9 10 8 9 8 10 14 14 14 18 24 24 24 Final Capacity 25 | 5 20 20 20 20 20 20 20 20 10 10 10 10 10 10 10 10 10 10 10 10 10 10 10 15 15 15 15 25 25 25 25 Final Carried 25 | 4 20 20 20 20 20 20 20 20 10 10 10 10 10 10 8 10 10 10 10 10 7 7 9 13 15 14 15 23 25 25 22 Class Distribution -------------------- 27% | Scavenger-Mutant 20% | Mutant 9% | Scavenger-Sprinter 7% | Hacker-Ninja 5% | Sprinter 5% | Scout 4% | Hacker-Sprinter 3% | Hacker-Scout Dominant Class ---------------- Scavenger-Mutant | -10/Materials Scavenger-Mutant | -10/Mines Scavenger-Mutant | -9/Materials Mutant | -9/Mines Mutant | -8/Materials Scavenger-Mutant | -8/Storage Scavenger-Mutant | -8/Recycling Scavenger-Mutant | -8/Scraptown Hacker-Sprinter | -6/Factory Ninja | -6/Waste Machinist-Scout | -6/Factory Commander-Sprinter | -6/Extension Commander-Sprinter | -6/Cetus Commander-Assassin | -6/Archives Commander-Scout | -6/Hub_04(d) Scout | -5/Factory Scout | -5/Upper Caves Scout | -5/Upper Caves Scavenger-Scout | -5/Warlord Scavenger-Sprinter | -4/Proximity Caves Scavenger-Sprinter | -4/Factory Scavenger-Sprinter | -4/Armory Hacker-Mutant | -4/Lab Hacker-Ninja | -3/Research Hacker-Ninja | -3/Testing Hacker-Ninja | -2/Research Hacker-Ninja | -2/Quarantine Scavenger-Sprinter | -2/Protoforge Sprinter | -1/Access Scavenger-Sprinter | -1/Command Scavenger-Mutant | -1/Access_0 Resources | -11 -10 -10 -9 -9 -8 -8 -8 -8 -6 -6 -6 -6 -6 -6 -6 -5 -5 -5 -5 -4 -4 -4 -4 -3 -3 -2 -2 -2 -1 -1 -1 ----------- Run | Yrd Mat Min Mat Min Mat Sto Rec Scr Fac Was Fac Ext Cet Arc Hub Fac Upp Upp War Pro Fac Arm Lab Res Tes Res Qua Frg Acc Com Ac0 Matter Collected 16744 | 183 501 177 706 60 771 413 159 50 397 588 165 902 328 72 150 470 126 59 1995 30 205 332 . 745 196 164 135 2549 1406 1488 1222 Remotely . | . . . . . . . . . . . . . . . . . . . . . . . . . . . . . . . . Salvage Created 24687 | 160 691 266 2006 . 1922 815 438 . 746 1256 267 864 659 38 592 734 57 82 1658 88 222 478 . 980 735 533 236 2132 1596 1332 3104 Parts 1124 | 14 51 17 116 . 92 44 15 . 32 9 9 43 49 4 29 27 . 1 44 1 24 22 . 23 44 21 9 113 72 38 161 Haulers Intercepted 38 | . 2 . 6 . 2 5 . . 4 . 1 1 . . 1 5 . . . . . . . 5 1 2 1 . 2 . . Recyclers Shooed 9 | . 1 . 2 . . . 1 . 2 . 1 2 . . . . . . . . . . . . . . . . . . . Parts Field Recycled . | . . . . . . . . . . . . . . . . . . . . . . . . . . . . . . . . Retrieved Matter . | . . . . . . . . . . . . . . . . . . . . . . . . . . . . . . . . Parts Self-Destructed 1 | . . . . . . . . . . . . . . . . . . . . 1 . . . . . . . . . . . Prevented . | . . . . . . . . . . . . . . . . . . . . . . . . . . . . . . . . Parts Restored 1 | . . . . . . . . . . . . . . . . . . . . . . . . . . . . 1 . . . Faulty 1 | . . . . . . . . . . . . . . . . . . . . . . . . . . . . 1 . . . Kills | -11 -10 -10 -9 -9 -8 -8 -8 -8 -6 -6 -6 -6 -6 -6 -6 -5 -5 -5 -5 -4 -4 -4 -4 -3 -3 -2 -2 -2 -1 -1 -1 ------- Run | Yrd Mat Min Mat Min Mat Sto Rec Scr Fac Was Fac Ext Cet Arc Hub Fac Upp Upp War Pro Fac Arm Lab Res Tes Res Qua Frg Acc Com Ac0 Combat Hostiles Destroyed 324 | . 21 6 41 . 32 13 2 . 2 6 . 8 7 . 6 10 . . 35 1 11 11 . 1 5 2 1 38 16 8 41 Melee 26 | . . . . . . 1 . . 2 . . . . . . . . . . 1 . 4 . 1 5 2 1 9 . . . Guns 106 | . 14 1 9 . 6 . 2 . . . . 8 7 . 6 1 . . . . . . . . . . . 21 5 . 26 Cannons 110 | . 2 5 24 . 16 8 . . . . . . . . . . . . 24 . 1 2 . . . . . 4 10 3 11 AOE 66 | . 5 . 6 . 8 3 . . . 6 . . . . . 9 . . 11 . 10 5 . . . . . 3 . . . Classes Destroyed 27 | 2 5 . 3 . 2 1 . . . 2 . . 1 . . 1 . . 4 . . . . . 1 . . 4 . 1 . Worker 10 | . . . 2 . 4 1 . . 1 . . . . . . . . . . . 1 . . . . . . 1 . . . Builder 11 | . . . . . 4 1 . . 2 . . 1 . . 1 1 . . . . . . . . . . . 1 . . . Tunneler 7 | 3 . . 1 . . . . . . . . . . . 1 . . . . . 1 . . . . . . . 1 . . Hauler 38 | . 2 . 6 . 2 5 . . 4 . 1 1 . . 1 5 . . . . . . . 5 1 2 1 . 2 . . Recycler 23 | 1 . 2 3 . 2 1 4 . 1 . 1 1 . . . . . . . . . . . 3 1 . . . . 3 . Operator 9 | . 1 . 2 . . . . . . . 1 . . 1 1 . . . . . 1 . . 1 . 1 . . . . . Drone 14 | . . . . . . . . . . . . . . . . 2 . . . . 2 . . . . . . 6 . . 4 Watcher 30 | . 1 . 1 . 1 1 . . 2 . . . 1 . 2 4 . . . . . . . . 3 4 2 . 6 2 . Swarmer 49 | . 9 3 15 . . 2 . . . . . . . . 1 6 . . . . 9 3 . . . . . . 1 . . Grunt 90 | . 12 3 15 . 23 3 . . . . . 1 . . 2 2 . . 19 . . 4 . 1 . 1 . . 4 . . Brawler 6 | . . . 1 . 1 . . . . . . . . . 1 . . . 3 . . . . . . . . . . . . Protector 7 | . . . . . . . . . . . . . . . . . . . 7 . . . . . . . . . . . . Researcher 3 | . . . . . . . . . . . . . . . . . . . . . . . . . 1 . . 2 . . . Sentry 44 | . . . 10 . 7 7 2 . . . . 4 . . 1 . . . . 1 . 2 . . . 1 . 9 . . . Demolisher 3 | . . . . . . . . . . . . . . . . . . . 2 . . 1 . . . . . . . . . Specialist 2 | . . . . . . . . . . . . . . . . . . . 2 . . . . . . . . . . . . Hunter 8 | . . . . . . 1 . . 2 . . 2 . . 1 . . . . . . . . . . . . . 2 . . Programmer 21 | . . . . . . . . . . . . . . . . . . . 1 . . 1 . . 5 . 1 5 6 2 . Heavy 1 | . . . . . 1 . . . . . . . . . . . . . . . . . . . . . . . . . . Behemoth 1 | . . . . . . . . . . . . . . . . . . . . . . . . . . . . . . 1 . Compactor 6 | . . . . . . . . . . 6 . . . . . . . . . . . . . . . . . . . . . Cetus Guard 7 | . . . . . . . . . . . . . 7 . . . . . . . . . . . . . . . . . . S7 Guard 1 | . . . . . . . . . . . . . . . . . . . . . . . . . . . . . 1 . . M Guard 2 | . . . . . . . . . . . . . . . . . . . . . . . . . . . . . . 2 . Enhanced Grunt 19 | . . . . . . . . . . . . . . . . . . . . . . . . . . . . . . . 19 Enhanced Sentry 3 | . . . . . . . . . . . . . . . . . . . . . . . . . . . . . . . 3 Enhanced Hunter 5 | . . . . . . . . . . . . . . . . . . . . . . . . . . . . . . . 5 Enhanced Programmer 9 | . . . . . . . . . . . . . . . . . . . . . . . . . . . . . . . 9 CL-0N3 Special 1 | . . . . . . . . . . . . . . . . . . . . . . . . . . . . . 1 . . Hotshot 2 | . . . . . . . . . . . . . . . . . . . . . . . . . . . . 2 . . . Decapitator 9 | . . . . . . . . . . . . . . . . . . . . . . . . . . . . 9 . . . Immortal 2 | . . . . . . . . . . . . . . . . . . . . . . . . . . . . 2 . . . Combat Programmer 2 | . . . . . . . . . . . . . . . . . . . . . . . . . . . . . . 2 . Executioner 1 | . . . . . . . . . . . . . . . . . . . 1 . . . . . . . . . . . . Alpha 7 2 | . . . . . . . . . . . . . . . . . . . . . . . . . . . . 2 . . . V-Series 3 | . . . . . . . . . . . . . . . . . . . . . . . . . . . . 3 . . . Packrat 1 | . . . . . . . . . . . . . . . . . . 1 . . . . . . . . . . . . . Tinkerer 1 | . . . . . . . . . . . . . . . . . . . . . . . . . . . . 1 . . . Thug 3 | . . . . . . . . . . 1 . . . . 1 . . . 1 . . . . . . . . . . . . Savage 1 | . . . . . . . . . . . . 1 . . . . . . . . . . . . . . . . . . . Butcher 1 | . . . . . . . . . . . . . 1 . . . . . . . . . . . . . . . . . . Martyr 2 | . . . . . . . . . . 2 . . . . . . . . . . . . . . . . . . . . . Best Kill Streak 14 | 4 5 3 5 . 6 8 3 . 2 4 1 3 5 1 3 5 . . 8 2 11 5 . 3 3 2 2 14 14 6 5 Combat Bots Only 13 | . 4 3 5 . 6 4 1 . 1 4 . 2 4 . 3 5 . . 8 2 9 5 . 1 3 1 1 13 13 4 5 Max Kills in Single Turn 6 | 1 3 1 5 . 2 3 1 . 1 1 1 1 2 1 2 5 . 1 4 1 6 5 . 1 1 1 1 2 2 1 2 Gunslinging 1 | . . . . . . . . . . . . . 1 . . . . . . . . . . . . . . . . . . Exploded 5 | . 3 . 4 . 2 1 . . . 1 . . . . . 5 . . 4 . 5 5 . . . . . 2 . . . Melee 1 | . . . . . . 1 . . 1 . . . . . . . . . . 1 . 1 . 1 1 1 1 1 . . . Uniques/NPCs Destroyed 11 | . . . . . . . . . . . . . 1 . . . . . . . . . . . . . . . 2 2 6 A7 (-6/Cetus) CL-0N3 (-1/Access) 6S-H0T (-1/Access) MAIN.C Shell (-1/Command) MAIN.C (-1/Command) A6 (-1/Access_0) A5 (-1/Access_0) A2 (-1/Access_0) A4 (-1/Access_0) Architect (-1/Access_0) A3 (-1/Access_0) Combat | -11 -10 -10 -9 -9 -8 -8 -8 -8 -6 -6 -6 -6 -6 -6 -6 -5 -5 -5 -5 -4 -4 -4 -4 -3 -3 -2 -2 -2 -1 -1 -1 -------- Run | Yrd Mat Min Mat Min Mat Sto Rec Scr Fac Was Fac Ext Cet Arc Hub Fac Upp Upp War Pro Fac Arm Lab Res Tes Res Qua Frg Acc Com Ac0 Hostile Shots Fired 1808 | . 92 21 181 . 146 80 4 . 60 . . 134 2 1 68 29 3 3 45 6 141 118 . 8 52 84 34 128 49 63 256 Missed 758 | . 17 7 46 . 40 31 1 . 34 . . 63 1 . 43 8 1 2 21 2 78 59 . 3 21 42 21 45 11 27 134 Intercepted 1 | . . . . . . . . . . . . . . . . . . . . . . . . . . . . . . 1 . Hits 1050 | . 75 14 135 . 106 49 3 . 26 . . 71 1 1 25 21 2 1 24 4 63 59 . 5 31 42 13 83 38 36 122 Melee 14 | . . . 1 . 2 . . . . . . . . . . . . . . . . . . . . . . 11 . . . Projectile 1036 | . 75 14 134 . 104 49 3 . 26 . . 71 1 1 25 21 2 1 24 4 63 59 . 5 31 42 13 72 38 36 122 AOE 15 | . . . . . . . . . . . . . . . 2 . . . 1 . . 1 . . . . . 10 . . 1 Critical Strikes 63 | . 3 . 1 . 4 1 . . . . . 1 . . . 5 . . 1 . 9 6 . . 4 2 2 12 6 1 5 Actively Blocked 24 | . . . . . . . . . . . . 1 . . . . . . . . . 4 . . . 2 2 11 . . 4 Part Disruptions 8 | . . . . . . . . . . . . . . . . 1 . . . . . . . . . . . . . 4 3 Damage Taken 20416 | . 788 149 1403 . 1850 685 96 . 398 22 117 704 37 22 560 350 42 57 868 99 1122 1160 . 127 733 1022 401 3176 1034 1053 2341 Core 2756 | . 169 31 162 . 108 61 15 . 173 11 23 147 . . 87 32 . 44 159 26 293 222 . 29 236 92 . 353 . . 283 Absorbed by Shields 2199 | . . . 159 . 83 . . . . . . 130 12 . . . . . . . . . . . . . . 353 . . 1462 Redirected to Shielding 269 | . . . . . . . . . . . . . . . . . . . . . . . . . . . . 43 107 . 119 Ignored by Resistances 934 | . . . . . . . . . . . . 4 . . . . . . . . . . . . . . . 395 184 283 68 Regen/Repaired (Parts) 4767 | . 88 . . . . . . . . . 14 268 24 122 4 205 65 4 167 56 92 226 226 73 91 198 256 927 655 777 229 Core Remaining (%) 64 | 100 . 20 . 59 . . . 66 . . . . . . 48 . . . . 73 . . 80 . 79 . . 62 . . 61 Volleys Fired 1223 | 4 87 15 119 3 112 42 8 . . 13 11 82 15 6 20 11 2 2 181 4 5 8 . 6 2 . 4 142 52 78 189 Largest 2 | 2 2 2 2 1 2 2 2 . . 1 2 2 2 1 2 1 1 1 1 1 2 2 . 1 1 . 1 2 2 2 2 Hottest 270 | 60 60 60 136 100 136 136 50 . . 45 66 66 66 35 70 51 35 35 105 35 102 116 . 120 50 . 50 140 100 140 270 Shots Fired 1733 | 8 139 30 235 3 215 66 19 . . 13 15 160 30 6 28 11 2 2 181 4 7 14 . 6 2 . 4 176 67 79 211 Gun 800 | 8 128 8 108 . 72 4 19 . . . 15 159 30 6 28 2 . . . . . . . . 1 . . 114 36 1 61 Cannon 876 | . 8 22 124 1 134 58 . . . . . . . . . 4 2 2 171 4 4 13 . 6 1 . 4 59 31 78 150 Launcher 51 | . 3 . 2 . 9 4 . . . 13 . . . . . 5 . . 8 . 3 1 . . . . . 3 . . . Special 6 | . . . 1 2 . . . . . . . 1 . . . . . . 2 . . . . . . . . . . . . Kinetic 1038 | 4 106 30 108 . 72 4 19 . . . 15 159 30 6 28 4 . . 170 . 4 12 . . 1 . . 130 44 19 73 Thermal 618 | 4 30 . 125 3 134 42 . . . . . . . . . 2 2 2 1 4 . 1 . 6 1 . 4 43 16 60 138 Explosive 51 | . 3 . 2 . 9 4 . . . 13 . . . . . 5 . . 8 . 3 1 . . . . . 3 . . . Electromagnetic 23 | . . . . . . 16 . . . . . . . . . . . . . . . . . . . . . . 7 . . Robot Hit Streak 36 | 2 16 6 12 . 13 8 7 . . 6 . 9 16 3 2 2 . . 11 . 1 2 . . . . . 13 15 36 26 Robot Miss Streak 20 | 1 4 2 4 . 5 5 1 . . 4 . 6 8 3 5 2 . . 5 . 3 5 . . . . . 20 5 1 9 Penetration Max 3 | . . . . . . . . . . . 1 2 1 . 1 . . . 2 . . . . . . . . 3 2 1 2 Secondary Targets 3 | . . . . . 1 . . . . . . . 1 . . . . . . . . . . . . . . 1 . . . Max Gunslinging Chain 1 | . . . . . 1 . . . . . . . 1 . . . . . . . . . . . . . . 1 . . . Capacitor 196 | . . . . . . . . . . . . . . . . . . . . . . . . . . . . 17 9 53 117 Shots Hit Robots 1331 | 4 98 18 155 . 150 43 13 . 33 13 4 86 34 3 21 25 1 1 106 1 5 12 . 21 23 33 9 163 56 43 157 Core Hits 864 | 4 38 10 66 . 72 27 7 . 13 28 3 43 17 1 14 35 . 1 134 1 22 12 . 9 10 11 4 97 67 25 93 Critical Kills 141 | . . . 2 . 1 . . . . . 1 10 8 . 2 1 . . 23 . . . . . 1 . . 26 22 6 38 Critical Parts Destroyed 160 | . . . . . 2 . . . . . 1 23 3 . 3 . . . 48 . . . . . 1 . . 33 15 1 30 Critical Strikes 358 | . . 1 2 . 3 1 . . 4 1 2 40 15 . 6 1 . . 77 1 . 1 . 2 4 3 . 79 37 7 71 Meltdown 15 | . . . 2 . 1 . . . . . . . . . . . . . . . . . . . . . . 1 . 5 6 Destroy 313 | . . . . . 2 . . . . . 2 40 14 . 5 1 . . 77 . . . . . 2 . . 66 37 2 65 Blast 6 | . . 1 . . . . . . . . . . . . . . . . . . . . . . . . . 5 . . . Sever 14 | . . . . . . 1 . . 4 1 . . 1 . 1 . . . . . . . . 1 2 3 . . . . . Impale 9 | . . . . . . . . . . . . . . . . . . . . 1 . . . 1 . . . 7 . . . Sunder 1 | . . . . . . . . . . . . . . . . . . . . . . 1 . . . . . . . . . Melee Attacks 497 | . . . . . 13 4 . . 71 5 6 . 12 1 29 38 7 11 1 9 9 22 5 58 48 62 26 60 . . . Impact . | . . . . . . . . . . . . . . . . . . . . . . . . . . . . . . . . Slashing 436 | . . . . . 13 4 . . 71 5 6 . 12 1 29 38 7 11 1 . . 13 5 43 48 62 26 41 . . . Piercing 51 | . . . . . . . . . . . . . . . . . . . . 9 9 . . 14 . . . 19 . . . Entropic 10 | . . . . . . . . . . . . . . . . . . . . . . 9 . 1 . . . . . . . Sneak Attacks 78 | . . . . . 5 . . . 12 5 2 . 12 1 1 5 . 1 . . 1 . . 12 2 2 2 15 . . . Combat Hostiles 4 | . . . . . . . . . 1 . . . . . . . . . . . . . . . . . . 3 . . . Follow-up Attacks 18 | . . . . . . . . . . . . . . . . 4 . . . . . . . 3 3 7 1 . . . . Damage Inflicted 58398 | 66 1280 316 3183 5 4087 1736 247 . 1836 5091 271 816 807 183 995 2292 102 121 5534 80 998 1383 . 1962 1592 2142 806 7399 778 3871 8419 Guns 7203 | 64 954 44 1290 . 849 53 217 . . . 19 816 151 82 448 29 . . . . . . . . 13 . . 1039 461 12 662 Cannons 21203 | . 104 258 1535 . 1880 762 . . . . . . . . . . . . 2192 . 34 239 . . . . . 2266 317 3859 7757 Explosions 12989 | . 210 . 333 . 938 771 . . . 4735 . . . . . 883 . . 3342 . 650 678 . . . . . 449 . . . Melee 16805 | . . . . . 345 115 . . 1836 356 252 . 656 101 547 1380 102 121 . 80 314 466 . 1962 1579 2142 806 3645 . . . Ramming 198 | 2 12 14 25 5 75 35 30 . . . . . . . . . . . . . . . . . . . . . . . . Kinetic 12280 | 52 849 302 1290 . 849 53 217 . . . 19 816 151 82 448 29 . . 2192 . 34 239 . . 13 . . 2154 483 1295 713 Thermal 15688 | 12 209 . 1535 . 1880 431 . . . . . . . . . . . . . . . . . . . . . 1151 188 2576 7706 Explosive 12989 | . 210 . 333 . 938 771 . . . 4735 . . . . . 883 . . 3342 . 650 678 . . . . . 449 . . . Electromagnetic 438 | . . . . . . 331 . . . . . . . . . . . . . . . . . . . . . . 107 . . Impact . | . . . . . . . . . . . . . . . . . . . . . . . . . . . . . . . . Slashing 13979 | . . . . . 345 115 . . 1836 356 252 . 656 101 547 1380 102 121 . . . 47 . 1251 1579 2142 806 2343 . . . Piercing 2334 | . . . . . . . . . . . . . . . . . . . . 80 314 . . 638 . . . 1302 . . . Entropic 492 | . . . . . . . . . . . . . . . . . . . . . . 419 . 73 . . . . . . . Highest Corruption 12 | . . . . . 10 12 12 . . . 1 1 1 1 4 2 2 2 2 . 1 2 2 . 7 . 2 10 2 9 8 Average Corruption 4 | . . . . . 9 10 12 . . . 1 1 1 1 1 1 2 2 2 . 1 1 2 . 4 . 1 7 1 3 5 Corruption Purged 17 | . . . . . . . . . . . . . . 1 . . . . . . . . . . . . 2 . . 14 . Corruption Blocked . | . . . . . . . . . . . . . . . . . . . . . . . . . . . . . . . . Effects 242 | . . . . . 11 40 40 . . . 5 9 3 1 1 . 7 3 . . 1 3 7 . 4 . 3 40 12 16 36 Message Errors 57 | . . . . . 3 13 8 . . . 2 . . . . . 4 1 . . . . 3 . 2 . . 10 3 4 4 Matter Fused 66 | . . . . . 4 11 9 . . . 2 4 2 1 . . 2 1 . . 1 2 . . 1 . . 8 3 4 11 Heat Flow Errors 27 | . . . . . 1 4 3 . . . . 1 . . . . 1 . . . . . 3 . . . . 7 . 1 6 Energy Discharges 30 | . . . . . 1 4 7 . . . . 2 . . . . . . . . . . . . . . 1 6 5 1 3 Parts Rejected 3 | . . . . . . 1 . . . . . 1 . . . . . . . . . . . . . . . . . . 1 Parts Fused 5 | . . . . . . . 1 . . . . . . . . . . 1 . . . . . . . . . 1 . 1 1 Data Loss (minor) 25 | . . . . . 1 3 6 . . . . 1 . . . . . . . . . 1 . . 1 . 1 3 1 3 4 Data Loss (major) 10 | . . . . . 1 2 3 . . . . . 1 . . . . . . . . . . . . . 1 1 . . 1 Misfires 8 | . . . . . . 1 3 . . . . . . . 1 . . . . . . . . . . . . 1 . . 2 Alerts 4 | . . . . . . 1 . . . . . . . . . . . . . . . . 1 . . . . . . 2 . Misdirections 1 | . . . . . . . . . . . . . . . . . . . . . . . . . . . . 1 . . . Weapon Failures 6 | . . . . . . . . . . . 1 . . . . . . . . . . . . . . . . 2 . . 3 Overload Shots 1 | . . . . . . . . . . . . . . . . . . . 1 . . . . . . . . . . . . Overflow Damage 3306 | . . . 3 . 51 1 . . 249 . . . . 56 68 127 68 . 8 . 39 19 . 183 242 54 80 1634 . 74 350 Projectiles 512 | . . . 3 . 19 1 . . . . . . . . . . . . . . . . . . . . . 65 . 74 350 Explosions 30 | . . . . . . . . . . . . . . . . . . . 8 . 22 . . . . . . . . . . Melee 2764 | . . . . . 32 . . . 249 . . . . 56 68 127 68 . . . 17 19 . 183 242 54 80 1569 . . . Knockbacks 35 | . 3 1 . . . 1 . . . . . . . . . . . . 5 . . . . . . . . 6 10 8 1 Impact 1 | . . . . . . 1 . . . . . . . . . . . . . . . . . . . . . . . . . Kinetic 33 | . 3 1 . . . . . . . . . . . . . . . . 4 . . . . . . . . 6 10 8 1 Secondary 1 | . . . . . . . . . . . . . . . . . . . 1 . . . . . . . . . . . . Self-Inflicted Damage 222 | . 33 . 11 . 65 . . . . 22 . . . . . 19 . . 45 . . 18 . . . . . 9 . . . Shots 11 | . 1 . 1 . 2 . . . . 1 . . . . . 1 . . 3 . . 1 . . . . . 1 . . . Rammed 22 | 1 5 1 2 1 6 3 3 . . . . . . . . . . . . . . . . . . . . . . . . Targets Rammed 27 | 1 5 2 2 1 7 5 4 . . . . . . . . . . . . . . . . . . . . . . . . Kicked . | . . . . . . . . . . . . . . . . . . . . . . . . . . . . . . . . Crushed 5 | . . 1 . . 1 2 1 . . . . . . . . . . . . . . . . . . . . . . . . Highest Temperature 346 | . 48 51 171 . 299 150 180 . 110 8 105 306 20 9 62 140 210 304 228 . 30 27 274 346 . 12 . 185 36 203 163 Average Temperature 56 | . 21 29 48 . 78 56 94 . 20 2 37 82 7 3 19 36 70 14 92 . 9 16 136 91 . 7 . 66 15 62 55 Received Heat Transfer 2802 | . 240 57 391 . 769 198 48 . 45 . . 90 . . 51 9 21 9 27 18 73 223 . 27 . 135 45 155 36 81 54 Thermoelectric Energy+ 170 | . . . . . . . . . . . . . . . . . . . . . . . . . . . . . . 73 97 Effects 6 | . . . . . 2 . . . . . . 1 . . . . . . . . . . . 2 . . . . . 1 . Shutdowns 2 | . . . . . . . . . . . . . . . . . . . . . . . . 2 . . . . . . . Energy Bleed 4 | . . . . . 2 . . . . . . 1 . . . . . . . . . . . . . . . . . 1 . Siege Activations . | . . . . . . . . . . . . . . . . . . . . . . . . . . . . . . . . Martial Activations . | . . . . . . . . . . . . . . . . . . . . . . . . . . . . . . . . Shielding Activations . | . . . . . . . . . . . . . . . . . . . . . . . . . . . . . . . . Robots Disrupted . | . . . . . . . . . . . . . . . . . . . . . . . . . . . . . . . . Combat Hostiles . | . . . . . . . . . . . . . . . . . . . . . . . . . . . . . . . . Robots Corrupted 2 | . . . . . . 1 . . . . . . . . . . . . . . . . . . . . . . 1 . . Combat Hostiles 2 | . . . . . . 1 . . . . . . . . . . . . . . . . . . . . . . 1 . . Parts Fried 7 | . . . . . . 2 . . . . . . 1 . . . . . . . . . . . . . . . . . 4 Impact Corruptions 1 | . . 1 . . . . . . . . . . . . . . . . . . . . . . . . . . . . . Robots Melted 16 | . . . 2 . 2 . . . . . . . . . . . . . . . . . . . . . . 1 . 5 6 Combat Hostiles 14 | . . . 2 . 2 . . . . . . . . . . . . . . . . . . . . . . 1 . 5 4 Parts Melted 40 | . . . 4 . 9 . . . . . . . . . . . . . . . . . . . . . . 3 . 18 6 Heat Transferred 13069 | 25 475 . 2701 . 3404 777 . . . . . . . . . . . . . . . . . . . . . 1075 138 1373 3101 Parts Sabotaged . | . . . . . . . . . . . . . . . . . . . . . . . . . . . . . . . . Parts Stolen . | . . . . . . . . . . . . . . . . . . . . . . . . . . . . . . . . Parts Stripped . | . . . . . . . . . . . . . . . . . . . . . . . . . . . . . . . . Power Chain Reactions . | . . . . . . . . . . . . . . . . . . . . . . . . . . . . . . . . Alert | -11 -10 -10 -9 -9 -8 -8 -8 -8 -6 -6 -6 -6 -6 -6 -6 -5 -5 -5 -5 -4 -4 -4 -4 -3 -3 -2 -2 -2 -1 -1 -1 ------- Run | Yrd Mat Min Mat Min Mat Sto Rec Scr Fac Was Fac Ext Cet Arc Hub Fac Upp Upp War Pro Fac Arm Lab Res Tes Res Qua Frg Acc Com Ac0 Maximum Alert Level 3 | . 1 . 2 1 2 1 . . . . 2 3 2 1 3 2 . . . . 2 1 . . . . . 3 3 3 . Low Security (%) 59 | 100 87 100 59 94 43 13 100 . 100 100 17 49 . 73 36 . . . . . 87 70 . 100 100 100 100 16 . . . Level 1 17 | . 12 . 10 5 45 86 . . . . 76 6 . 26 19 78 . . . . 10 29 . . . . . 24 . . . Level 2 11 | . . . 29 . 10 . . . . . 6 13 99 . 14 21 . . . . 1 . . . . . . 35 13 23 . Level 3 11 | . . . . . . . . . . . . 30 . . 28 . . . . . . . . . . . . 23 86 76 . Level 4 . | . . . . . . . . . . . . . . . . . . . . . . . . . . . . . . . . Level 5 . | . . . . . . . . . . . . . . . . . . . . . . . . . . . . . . . . High Security . | . . . . . . . . . . . . . . . . . . . . . . . . . . . . . . . . Max Security . | . . . . . . . . . . . . . . . . . . . . . . . . . . . . . . . . Peak Influence 1068 | 10 267 75 669 247 454 337 90 . 72 55 457 786 568 327 833 479 . . . . 402 355 . 81 142 106 131 927 1068 679 . Initial 556 | . . 15 . 247 . 109 90 . . . . 91 406 166 . 390 . . . . 18 27 . . 13 68 4 . 556 556 . Average 209 | 2 120 5 250 33 239 240 19 . 12 15 231 370 482 113 417 303 . . . . 92 171 . 43 75 63 32 456 879 594 . Influence Increases 15236 | 20 653 199 1252 1 1081 533 137 . 396 86 587 1139 322 201 1266 574 65 60 1000 50 705 598 . 341 325 266 306 1539 741 467 326 Destroy 0b10 Robot/C 6340 | . 420 140 820 . 640 260 40 . 40 . 160 560 160 80 420 160 . . 560 20 180 220 . 20 120 40 20 760 260 240 . Destroy 0b10 Robot/NC 750 | 20 20 10 75 . 65 45 20 . 55 . 15 25 10 5 40 50 5 . 35 . 15 . . 45 25 35 15 50 45 25 . Destroy Leader 1156 | . 96 20 214 . 156 112 . . 32 . 32 74 . . 116 28 . . . . 20 50 . 10 28 22 16 50 56 24 . Allied During Kill 1092 | . . 14 . . . . . . 2 . 151 315 140 85 316 . . . . . . 11 . . . . . 21 . 37 . Trap Triggered on 0b10 40 | . . . . . . . . . . . . . . . 10 10 . . . . . 10 . 10 . . . . . . . Successful Hack 996 | . 25 . 8 . 39 9 17 . 100 . 26 56 . . . 121 . . . . 102 33 . 123 91 55 78 41 72 . . Select Force Hacks 150 | . 60 . 30 . . . 60 . . . . . . . . . . . . . . . . . . . . . . . . Disable Machine 1125 | . . . 60 . 15 60 . . 30 . . 15 . 30 150 30 . . . . 75 75 . 15 45 . 105 255 . 45 120 Anti-Garrison Action 600 | . . . . . . . . . . . 200 . . . . . . . . . . . . . . . . 200 200 . . Destroy Structure 1172 | . 17 . 15 1 76 32 . . 32 71 3 4 12 1 34 130 . . . . 178 64 . 58 16 39 27 27 48 96 191 Partial Spotted 735 | . . . . . 30 . . . 105 15 . 30 . . 90 30 . . . . 90 135 . 45 . 60 30 60 . . 15 Lose Combat Pursuer 1080 | . 15 15 30 . 60 15 . . . . . 60 . . 90 15 60 60 405 30 45 . . 15 . 15 15 75 60 . . Influence Decreases 15060 | 20 612 240 618 635 821 561 369 . 396 86 400 600 632 617 468 902 388 182 379 666 678 318 337 316 228 379 315 612 799 513 973 Entered New Map 4611 | . . 26 . 387 . 151 142 . . . . 96 320 250 . 408 174 29 25 646 12 30 337 . 12 54 5 . 371 313 823 Time Decay 7990 | 20 582 154 598 248 511 410 227 . 313 86 220 404 262 347 268 334 214 153 324 20 130 238 . 306 206 206 179 482 398 150 . Lost Part 441 | . 30 . 20 . 10 . . . 20 . 10 . . . 30 . . . 30 . 71 30 . . 10 30 10 70 10 30 30 Lost Ally 910 | . . 60 . . . . . . 20 . 170 100 50 20 170 10 . . . . 60 20 . 10 . . . 60 20 20 120 Purge Threat 1108 | . . . . . 300 . . . 43 . . . . . . 150 . . . . 405 . . . . 89 121 . . . . Squads Dispatched 106 | . 5 . 5 . 4 3 . . 18 . 2 2 . . 11 8 . . . 1 4 7 . 10 2 4 4 5 8 3 . Investigation 51 | . 3 . 3 . 1 1 . . 11 . 1 2 . . 3 7 . . . . 3 3 . 7 . . . 2 2 2 . Extermination 23 | . . . . . . . . . 4 . 1 . . . 1 1 . . . . 1 2 . 1 2 2 2 3 2 1 . Reinforcement 24 | . 2 . 2 . 2 2 . . 3 . . . . . 3 . . . . . . 2 . 2 . 2 2 . 2 . . Assault 3 | . . . . . . . . . . . . . . . . . . . . 1 . . . . . . . . 2 . . Garrison 5 | . . . . . 1 . . . . . . . . . 4 . . . . . . . . . . . . . . . . Intercept . | . . . . . . . . . . . . . . . . . . . . . . . . . . . . . . . . Searches Triggered . | . . . . . . . . . . . . . . . . . . . . . . . . . . . . . . . . Unchained Authorized 5 | . . . . . . . . . . . . . . . . 1 . . . . 1 . . . . 1 . . 2 . . Construction Impeded 1 | . . . . . . . . . 1 . . . . . . . . . . . . . . . . . . . . . . Haulers Reinforced 4 | . . . . . . . . . 1 . . . . . . . . . . . . . . 1 . . 1 . 1 . . Active Scanning Responses . | . . . . . . . . . . . . . . . . . . . . . . . . . . . . . . . . Cargo Convoy Interrupts . | . . . . . . . . . . . . . . . . . . . . . . . . . . . . . . . . Stealth | -11 -10 -10 -9 -9 -8 -8 -8 -8 -6 -6 -6 -6 -6 -6 -6 -5 -5 -5 -5 -4 -4 -4 -4 -3 -3 -2 -2 -2 -1 -1 -1 --------- Run | Yrd Mat Min Mat Min Mat Sto Rec Scr Fac Was Fac Ext Cet Arc Hub Fac Upp Upp War Pro Fac Arm Lab Res Tes Res Qua Frg Acc Com Ac0 Distress Signals 48 | . 1 . 2 . 6 1 . . 2 . . . 1 . 3 . . . 3 . 2 1 . 2 . 5 1 . . 18 . Communications Jammed . | . . . . . . . . . . . . . . . . . . . . . . . . . . . . . . . . Distress Signals . | . . . . . . . . . . . . . . . . . . . . . . . . . . . . . . . . Times Spotted 928 | . 33 12 60 . 56 23 3 . 26 6 . 31 8 2 40 24 4 4 158 6 55 87 . 17 9 58 45 42 36 13 70 Peak Tracking Total 34 | . 4 3 5 . 7 5 2 . 6 3 . 4 5 1 8 8 4 3 19 5 18 34 . 5 4 16 14 5 9 4 8 Tactical Retreats 84 | . 1 1 2 . 3 1 . . 6 . . 4 . . 5 3 1 3 10 1 6 9 . 3 1 12 6 3 1 . 2 ECM-based Alert Blocks 172 | . . . . . . . . . 12 . . . . . . 2 . . . . 9 67 . 4 3 41 34 . . . . Traps | -11 -10 -10 -9 -9 -8 -8 -8 -8 -6 -6 -6 -6 -6 -6 -6 -5 -5 -5 -5 -4 -4 -4 -4 -3 -3 -2 -2 -2 -1 -1 -1 ------- Run | Yrd Mat Min Mat Min Mat Sto Rec Scr Fac Was Fac Ext Cet Arc Hub Fac Upp Upp War Pro Fac Arm Lab Res Tes Res Qua Frg Acc Com Ac0 Traps Triggered 38 | . 2 . 2 . 2 2 . . 1 . . 2 . . . 1 . 1 . . 1 2 . . . . . 12 3 7 . Indirectly . | . . . . . . . . . . . . . . . . . . . . . . . . . . . . . . . . Trap Hack Attempts . | . . . . . . . . . . . . . . . . . . . . . . . . . . . . . . . . Triggered . | . . . . . . . . . . . . . . . . . . . . . . . . . . . . . . . . Disarmed . | . . . . . . . . . . . . . . . . . . . . . . . . . . . . . . . . Reprogrammed 10 | . . . . . . . . . . . . . . . . . . . . . . 4 . 6 . . . . . . . Reused 4 | . . . . . . . . . . . . . . . 1 1 . . . . . 1 . 1 . . . . . . . Traps Extracted . | . . . . . . . . . . . . . . . . . . . . . . . . . . . . . . . . Installed 3 | . . . . . . . . . . . . . . . 2 1 . . . . . . . . . . . . . . . Triggered 4 | . . . . . . . . . . . . . . . 1 1 . . . . . 1 . 1 . . . . . . . Most Traps Carried 3 | . . . . . . . . 3 3 3 3 3 3 3 3 1 . . . . . . . . . . . . . . . Machines | -11 -10 -10 -9 -9 -8 -8 -8 -8 -6 -6 -6 -6 -6 -6 -6 -5 -5 -5 -5 -4 -4 -4 -4 -3 -3 -2 -2 -2 -1 -1 -1 ---------- Run | Yrd Mat Min Mat Min Mat Sto Rec Scr Fac Was Fac Ext Cet Arc Hub Fac Upp Upp War Pro Fac Arm Lab Res Tes Res Qua Frg Acc Com Ac0 Machines Disabled 87 | . . . 5 . 1 4 . . 2 . . 2 . 2 10 2 . . 1 . 5 5 1 1 3 . 7 24 . 3 9 Max in Single Turn 4 | . . . 1 . 1 1 . . 1 . . . . 1 1 2 . . 1 . 4 1 1 1 1 . 1 2 . 1 1 Garrison Access 13 | . . . . . 1 . . . . . 1 . . . 1 3 . . . . 1 . . 1 . 2 1 1 1 . . Network Hub 2 | . . . . . . . . . . . . . . . 2 . . . . . . . . . . . . . . . . Machines Repaired . | . . . . . . . . . . . . . . . . . . . . . . . . . . . . . . . . Machines Dismantled . | . . . . . . . . . . . . . . . . . . . . . . . . . . . . . . . . Machines Sabotaged . | . . . . . . . . . . . . . . . . . . . . . . . . . . . . . . . . Overloaded Fab Kills . | . . . . . . . . . . . . . . . . . . . . . . . . . . . . . . . . Hacking | -11 -10 -10 -9 -9 -8 -8 -8 -8 -6 -6 -6 -6 -6 -6 -6 -5 -5 -5 -5 -4 -4 -4 -4 -3 -3 -2 -2 -2 -1 -1 -1 --------- Run | Yrd Mat Min Mat Min Mat Sto Rec Scr Fac Was Fac Ext Cet Arc Hub Fac Upp Upp War Pro Fac Arm Lab Res Tes Res Qua Frg Acc Com Ac0 Machines Accessed 194 | . 9 . 9 1 10 4 8 5 26 . 5 12 1 . 7 18 . . 2 . 11 5 1 16 8 9 6 8 10 2 1 Terminals 110 | . 6 . 7 . 8 3 6 . 11 . 3 10 1 . 5 5 . . . . 5 3 . 8 5 6 3 6 8 1 . Fabricators 10 | . . . . . . . . . 5 . 1 . . . . 2 . . . . 1 . . . 1 . . . . . . Repair Stations 7 | . 1 . . . . . . . . . . . . . . 3 . . . . 1 . . . . 1 . 1 . . . Recycling Units 27 | . 2 . 1 . . . 2 . 8 . . 2 . . . 4 . . . . 2 2 . 3 . . . . . 1 . Scanalyzers 12 | . . . 1 . 1 . . . 2 . . . . . . 1 . . . . 1 . . 3 1 . 2 . . . . Garrison Access 18 | . . . . . 1 1 . . . . 1 . . . 2 3 . . . . 1 . . 2 1 2 1 1 2 . . Total Hacks 731 | . 22 . 28 1 31 7 29 18 100 . 10 28 1 . 18 69 . . 2 . 47 20 4 99 30 46 39 40 22 3 17 Successful 350 | . 12 . 9 1 15 5 15 18 60 . 5 10 1 . 8 34 . . 2 . 32 12 4 28 12 13 18 9 8 2 17 Failed 379 | . 9 . 18 . 16 2 14 . 40 . 5 18 . . 10 35 . . . . 15 8 . 71 18 33 21 31 14 1 . Catastrophic 75 | . . . 1 . 1 2 1 . 4 . 2 6 . . 1 7 . . . . . . . 18 5 9 5 7 5 1 . Database Lockouts 2 | . 1 . 1 . . . . . . . . . . . . . . . . . . . . . . . . . . . . Manual 230 | . 11 . 14 . 9 3 19 . 49 . 2 12 1 . 10 15 . . . . 25 6 . 16 10 9 7 5 5 2 . Terminals 485 | . 16 . 24 . 26 6 25 . 52 . 6 23 1 . 13 35 . . . . 34 17 . 69 21 36 29 33 18 1 . Fabricators 39 | . . . . . . . . . 20 . 2 . . . . 8 . . . . 5 . . . 4 . . . . . . Repair Stations 22 | . 3 . . . . . . . . . . . . . . 11 . . . . 2 . . . . 4 . 2 . . . Recycling Units 49 | . 3 . 1 . . . 4 . 21 . . 5 . . . 5 . . . . 2 3 . 3 . . . . . 2 . Scanalyzers 47 | . . . 3 . 3 . . . 7 . . . . . . 5 . . . . 2 . . 17 1 . 9 . . . . Garrison Access 47 | . . . . . 2 1 . . . . 2 . . . 5 5 . . . . 2 . . 10 4 6 1 5 4 . . Terminal Hacks 182 | . 3 . 1 1 7 4 7 18 17 . 3 5 1 . 3 10 . . 2 . 19 8 4 15 6 10 7 7 6 1 17 Record 39 | . . . . . . . . 17 . . . . . . . . . . 1 . . . 4 . . . . . . . 17 Part Schematic 9 | . . . . . . . 2 . 2 . . . . . . . . . . . 4 1 . . . . . . . . . Robot Analysis 3 | . 1 . . . . . 1 . 1 . . . . . . . . . . . . . . . . . . . . . . Prototype ID Bank 20 | . . . . . 2 . 2 . 2 . 1 . . . 1 1 . . . . 3 1 . 4 1 1 1 . . . . Open Door 15 | . . . . 1 . 2 . . 1 . . 4 1 . . . . . 1 . . . . . 1 . . . 3 1 . Branch Access Points 7 | . . . . . . . . . 1 . 1 . . . . 1 . . . . 1 . . 1 . 1 . . 1 . . Emergency Access Points 10 | . . . . . . . 1 . 1 . 1 . . . . 1 . . . . 1 . . . 2 1 . 1 1 . . Machine Index 1 | . . . . . . . . . . . . . . . . . . . . . 1 . . . . . . . . . . Terminal Index 2 | . 1 . . . . . . . . . . . . . . . . . . . . . . 1 . . . . . . . Fabricator Index 2 | . . . . . . . . . . . . . . . . 1 . . . . . . . . . . . 1 . . . Repair Station Index 1 | . . . . . . . . . . . . . . . . . . . . . . . . . . . . . 1 . . Scanalyzer Index 2 | . . . . . . . . . 1 . . . . . . 1 . . . . . . . . . . . . . . . Garrison Index 1 | . . . . . . . . . . . . . . . . . . . . . . . . 1 . . . . . . . Alert Level 2 | . . . . . . . . . . . . . . . . . . . . . 1 1 . . . . . . . . . Unreport Threat 11 | . . . . . 2 . . . 1 . . . . . . 1 . . . . 3 . . . . 2 2 . . . . Locate Traps 11 | . . . . . . 1 . . 1 . . . . . 1 2 . . . . . 1 . 1 . 1 1 2 . . . Reprogram Traps 2 | . . . . . . . . . . . . . . . . . . . . . . 1 . 1 . . . . . . . Dispatch Records 1 | . . . . . . . . . . . . . . . . . . . . . 1 . . . . . . . . . . Recall Investigation 5 | . . . 1 . . . . . 3 . . . . . . 1 . . . . . . . . . . . . . . . Recall Extermination 2 | . . . . . . . . . 1 . . . . . . . . . . . . . . . . 1 . . . . . Recall Reinforcements 2 | . . . . . . . . . . . . . . . 1 . . . . . . . . . . 1 . . . . . Hauler Manifests 8 | . 1 . . . 1 1 1 . . . . . . . . 1 . . . . 1 . . . . 1 1 . . . . Registered Components 4 | . . . . . . . . . 1 . . . . . . . . . . . 1 1 . 1 . . . . . . . Registered Prototypes 3 | . . . . . . . . . . . . . . . . . . . . . 1 . . 1 1 . . . . . . Zone Layout 17 | . . . . . 2 . . . 1 . . 1 . . . . . . . . 1 2 . 4 1 1 2 2 . . . Proto ID Catalog 2 | . . . . . . . . 1 . . . . . . . . . . . . . . . . . . . 1 . . . Fabricator Hacks 16 | . . . . . . . . . 11 . 1 . . . . 3 . . . . . . . . 1 . . . . . . Network Status 2 | . . . . . . . . . . . . . . . . 1 . . . . . . . . 1 . . . . . . Load Schematic 8 | . . . . . . . . . 7 . . . . . . 1 . . . . . . . . . . . . . . . Build 6 | . . . . . . . . . 4 . 1 . . . . 1 . . . . . . . . . . . . . . . Repair Station Hacks 6 | . 2 . . . . . . . . . . . . . . 4 . . . . . . . . . . . . . . . Scan Component 4 | . 1 . . . . . . . . . . . . . . 3 . . . . . . . . . . . . . . . Repair 2 | . 1 . . . . . . . . . . . . . . 1 . . . . . . . . . . . . . . . Recycling Unit Hacks 5 | . . . . . . . . . 3 . . 1 . . . 1 . . . . . . . . . . . . . . . Retrieve Components 5 | . . . . . . . . . 3 . . 1 . . . 1 . . . . . . . . . . . . . . . Scanalyzer 23 | . . . 2 . 1 . . . 3 . . . . . . 3 . . . . 2 . . 5 1 . 6 . . . . Insert Component 11 | . . . . . . . . . 1 . . . . . . 2 . . . . . . . 3 1 . 4 . . . . Analyze 4 | . . . . . . . . . 1 . . . . . . 1 . . . . . . . 1 . . 1 . . . . Retrieve Study 8 | . . . 2 . 1 . . . 1 . . . . . . . . . . . 2 . . 1 . . 1 . . . . Garrison Access Hacks 10 | . . . . . 1 . . . . . . . . . 1 3 . . . . 1 . . 1 . 2 1 . . . . Seal Access 10 | . . . . . 1 . . . . . . . . . 1 3 . . . . 1 . . 1 . 2 1 . . . . Unauthorized Hacks 108 | . 7 . 6 . 6 1 8 . 26 . 1 4 . . 4 10 . . . . 10 4 . 7 4 1 4 2 2 1 . Terminals 58 | . 5 . 5 . 6 1 6 . 9 . . 2 . . 4 3 . . . . 3 2 . 4 2 1 4 . 1 . . Track 4 | . . . . . . . . . . . . . . . . . . . . . . 2 . 1 . . 1 . . . . Assimilate 6 | . . . . . . . . . 1 . . . . . 2 1 . . . . . . . 1 . . 1 . . . . Botnet 18 | . . . . . 1 . 1 . 2 . . 2 . . 1 2 . . . . 2 . . 2 2 1 1 . 1 . . Operators 4 | . . . . . . . . . 1 . . . . . 1 . . . . . 1 . . . . . 1 . . . . Skim 26 | . 5 . 5 . 5 1 5 . 5 . . . . . . . . . . . . . . . . . . . . . . Fabricators 13 | . . . . . . . . . 5 . . . . . . 2 . . . . 4 . . . 2 . . . . . . Report 2 | . . . . . . . . . . . . . . . . . . . . . 1 . . . 1 . . . . . . Prioritize 4 | . . . . . . . . . 2 . . . . . . 1 . . . . 1 . . . . . . . . . . Liberate 1 | . . . . . . . . . . . . . . . . . . . . . 1 . . . . . . . . . . Haulers 3 | . . . . . . . . . . . . . . . . 1 . . . . 1 . . . 1 . . . . . . Recompile 3 | . . . . . . . . . 3 . . . . . . . . . . . . . . . . . . . . . . Repair Stations 3 | . . . . . . . . . . . . . . . . 1 . . . . 1 . . . . . . 1 . . . Patch 3 | . . . . . . . . . . . . . . . . 1 . . . . 1 . . . . . . 1 . . . Recycling Units 31 | . 2 . 1 . . . 2 . 12 . . 2 . . . 4 . . . . 2 2 . 3 . . . . . 1 . Monitor 1 | . . . . . . . . . 1 . . . . . . . . . . . . . . . . . . . . . . Reject 3 | . . . . . . . . . 3 . . . . . . . . . . . . . . . . . . . . . . Recyclers 1 | . . . . . . . . . 1 . . . . . . . . . . . . . . . . . . . . . . Mask 2 | . . . . . . . . . 2 . . . . . . . . . . . . . . . . . . . . . . Tunnel 5 | . 2 . 1 . . . 2 . . . . . . . . . . . . . . . . . . . . . . . . Fedlink 16 | . . . . . . . . . 5 . . 1 . . . 4 . . . . 2 1 . 3 . . . . . . . Scrapoids 2 | . . . . . . . . . . . . 1 . . . . . . . . . . . . . . . . . 1 . Scraphulk 1 | . . . . . . . . . . . . . . . . . . . . . . 1 . . . . . . . . . Scanalyzers . | . . . . . . . . . . . . . . . . . . . . . . . . . . . . . . . . Garrison Access 3 | . . . . . . . . . . . 1 . . . . . . . . . . . . . . . . 1 1 . . Jam 3 | . . . . . . . . . . . 1 . . . . . . . . . . . . . . . . 1 1 . . Data Cores Recovered 5 | . . . . . . . . . . . 1 . . . 1 . . . . . 1 . . 1 . 1 . . . . . Used 1 | . . . . . . . . . . . . . . . . . . . . . . . . 1 . . . . . . . Hacking Detections 124 | . 7 . 7 . 8 3 5 . 18 . 4 7 . . 5 9 . . . . 6 4 . 12 5 7 4 6 7 . . Full Trace Events 6 | . . . . . . . . . 3 . . . . . 1 2 . . . . . . . . . . . . . . . Feedback Events 2 | . . . . . . . . . 1 . . . . . 1 . . . . . . . . . . . . . . . . Corruption 1 | . . . . . . . . . . . . . . . 1 . . . . . . . . . . . . . . . . Hackware Fried 1 | . . . . . . . . . 1 . . . . . . . . . . . . . . . . . . . . . . Feedback Blocked . | . . . . . . . . . . . . . . . . . . . . . . . . . . . . . . . . Robot Schematics Acquired 54 | . . . . . . . . . . . . . . . . . . . . . . . . . . . . 2 52 . . Robots Built . | . . . . . . . . . . . . . . . . . . . . . . . . . . . . . . . . Authchips . | . . . . . . . . . . . . . . . . . . . . . . . . . . . . . . . . Time . | . . . . . . . . . . . . . . . . . . . . . . . . . . . . . . . . Total Robot Build Rating . | . . . . . . . . . . . . . . . . . . . . . . . . . . . . . . . . Part Schematics Acquired 20 | . . . . . . . 2 . 3 . . . . . . 1 . . . . 4 1 . . 2 . 1 6 . . . Parts Built 7 | . . . . . . . . . 4 . 2 . . . . 1 . . . . . . . . . . . . . . . Authchips 3 | . . . . . . . . . 3 . . . . . . . . . . . . . . . . . . . . . . Time 325 | . . . . . . . . . 234 . 58 . . . . 33 . . . . . . . . . . . . . . . Total Part Build Rating 34 | . . . . . . . . . 16 . 14 . . . . 4 . . . . . . . . . . . . . . . Part Studies Acquired 7 | . . . 1 . 1 . . . 1 . . . . . . . . . . . 2 . . 1 . . 1 . . . . Parts Repaired 2 | . 1 . . . . . . . . . . . . . . 1 . . . . . . . . . . . . . . . Time 66 | . 26 . . . . . . . . . . . . . . 40 . . . . . . . . . . . . . . . Parts Recycled . | . . . . . . . . . . . . . . . . . . . . . . . . . . . . . . . . Recycled Matter . | . . . . . . . . . . . . . . . . . . . . . . . . . . . . . . . . Retrieved Matter . | . . . . . . . . . . . . . . . . . . . . . . . . . . . . . . . . Retrieved Components 21 | . . . . . . . . . 19 . . 2 . . . . . . . . . . . . . . . . . . . Parts Scanalyzed 3 | . . . . . . . . . 1 . . . . . . 1 . . . . . . . 1 . . . . . . . Part Schematics Acquired 3 | . . . . . . . . . 1 . . . . . . 1 . . . . . . . . . . 1 . . . . Parts Damaged 2 | . . . . . . . . . . . . . . . . 1 . . . . . . . . . . 1 . . . . Bothacking | -11 -10 -10 -9 -9 -8 -8 -8 -8 -6 -6 -6 -6 -6 -6 -6 -5 -5 -5 -5 -4 -4 -4 -4 -3 -3 -2 -2 -2 -1 -1 -1 ------------ Run | Yrd Mat Min Mat Min Mat Sto Rec Scr Fac Was Fac Ext Cet Arc Hub Fac Upp Upp War Pro Fac Arm Lab Res Tes Res Qua Frg Acc Com Ac0 Used RIF Installer . | . . . . . . . . . . . . . . . . . . . . . . . . . . . . . . . . Robots Hacked . | . . . . . . . . . . . . . . . . . . . . . . . . . . . . . . . . Non-combat . | . . . . . . . . . . . . . . . . . . . . . . . . . . . . . . . . Combat . | . . . . . . . . . . . . . . . . . . . . . . . . . . . . . . . . Robot Hacks Applied . | . . . . . . . . . . . . . . . . . . . . . . . . . . . . . . . . Relay Couplers Released 5 | . . . . . . . . . . . . . . . 1 . . . . . . . . . . . . . 4 . . Machine Destruction 5 | . . . . . . . . . . . . . . . 1 . . . . . . . . . . . . . 4 . . Fabnet Peak Effective % . | . . . . . . . . . . . . . . . . . . . . . . . . . . . . . . . . Robots Rewired 8 | . . . . . . . . . 1 . . 6 . . . . . . 1 . . . . . . . . . . . . Allies Hacked . | . . . . . . . . . . . . . . . . . . . . . . . . . . . . . . . . Hacks Repelled . | . . . . . . . . . . . . . . . . . . . . . . . . . . . . . . . . Allies | -11 -10 -10 -9 -9 -8 -8 -8 -8 -6 -6 -6 -6 -6 -6 -6 -5 -5 -5 -5 -4 -4 -4 -4 -3 -3 -2 -2 -2 -1 -1 -1 -------- Run | Yrd Mat Min Mat Min Mat Sto Rec Scr Fac Was Fac Ext Cet Arc Hub Fac Upp Upp War Pro Fac Arm Lab Res Tes Res Qua Frg Acc Com Ac0 Total Allies 57 | . . 3 . . . . . . 1 20 . 14 5 . 1 1 . . 1 . 3 1 . 1 . . 1 . . 5 . Largest Group 19 | . . 3 . . . . . . 1 19 17 12 12 11 10 1 . . 1 . 3 1 . 1 . . 1 . . 5 . Highest-Rated Group 684 | . . 69 . . . . . . 41 684 584 470 647 647 627 7 . . 64 . 141 123 . 26 . . 45 . . 326 . Highest-Rated Ally 159 | . . 31 . . . . . . 41 50 46 159 159 96 96 7 . . 64 . 47 123 . 26 . . 45 . . 67 . Total Orders 93 | . . . . . . . . . . . . . . . 1 . . . . . . . . . . . . 10 7 1 74 STAY 16 | . . . . . . . . . . . . . . . 1 . . . . . . . . . . . . . 2 1 12 FOLLOW 2 | . . . . . . . . . . . . . . . . . . . . . . . . . . . . . 1 . 1 EXPLORE 7 | . . . . . . . . . . . . . . . . . . . . . . . . . . . . . . . 7 RETURN 68 | . . . . . . . . . . . . . . . . . . . . . . . . . . . . 10 4 . 54 Ally Attacks 854 | . . 9 . . . . . . 5 13 44 160 25 21 96 . . . . . 15 9 . . . . . 33 35 105 284 Total Damage 29382 | . . 107 . . . . . . 340 250 1123 3102 629 853 3178 . . . . . 139 340 . . . . . 865 2020 2449 13987 Kills 81 | . . 1 . . . . . . 1 . 8 24 3 4 18 . . . . . . . . . . . . 5 1 4 12 Allies Corrupted 9 | . . . . . . . . . . . . . . . 1 . . . . . 2 . . . . . 1 . . . 5 Allies Melted 8 | . . . . . . . . . . . 2 . . . 1 . . . 2 . . 1 . . . . . . . . 2 Intel | -11 -10 -10 -9 -9 -8 -8 -8 -8 -6 -6 -6 -6 -6 -6 -6 -5 -5 -5 -5 -4 -4 -4 -4 -3 -3 -2 -2 -2 -1 -1 -1 ------- Run | Yrd Mat Min Mat Min Mat Sto Rec Scr Fac Was Fac Ext Cet Arc Hub Fac Upp Upp War Pro Fac Arm Lab Res Tes Res Qua Frg Acc Com Ac0 Active Infowar (turns) 26208 | 38 1156 1440 1278 1905 743 562 918 1731 1228 314 485 969 563 1101 603 746 446 395 1065 115 288 512 580 714 434 424 469 1385 951 1482 1168 Optics 19354 | . . . . . . 268 918 1731 1228 314 485 969 563 1101 603 746 446 395 1065 115 288 512 580 714 434 424 469 1385 951 1482 1168 Sensors 7251 | . . . . . . . . . 1110 241 454 316 40 60 479 694 446 395 559 . . . . 336 434 422 279 986 . . . Zeronet 82 | . . . . . . . . . . . . . . . . . . . . . . . . . . . . . . 82 . Terrain 237 | 35 157 . . . . . . . . . . . . . . . . . . . . . . . . . . . . . 45 Traps 1 | . . . . . . . . . . . . . . . . . . . . . . 1 . . . . . . . . . Seismic 6854 | 38 1156 1440 1278 1905 743 294 . . . . . . . . . . . . . . . . . . . . . . . . . Cloaking 3107 | . . . . . . . . . . . . . . . . . . . . . . 46 . 247 . . 20 530 951 1313 . ECM 3385 | . . . . . . . . . 646 199 12 . . . . 109 . . . . 272 397 580 378 281 357 154 . . . . Robot Analysis Total 101 | . 1 . . . . . 1 . 1 . . . . . . . . . . . . . . . . . . . 98 . . Derelict Logs Recovered 8 | . . 2 . . . . . . . . . . . . . . 2 1 . 3 . . . . . . . . . . . Drone Launches 97 | . . . . . . . . . . . . . . . . . . . . . . . . . . . . 17 11 5 64 Drone Recoveries 81 | . . . . . . . . . . . . . . . . . . . . . . . . . . . . 13 10 . 58 Exploration | -11 -10 -10 -9 -9 -8 -8 -8 -8 -6 -6 -6 -6 -6 -6 -6 -5 -5 -5 -5 -4 -4 -4 -4 -3 -3 -2 -2 -2 -1 -1 -1 ------------- Run | Yrd Mat Min Mat Min Mat Sto Rec Scr Fac Was Fac Ext Cet Arc Hub Fac Upp Upp War Pro Fac Arm Lab Res Tes Res Qua Frg Acc Com Ac0 Turns Passed 29694 | 110 2015 1440 2269 1951 1826 997 918 1731 1228 314 485 969 563 1101 603 746 446 395 1065 115 288 512 580 714 434 424 469 1385 951 1482 1168 Spaces Moved 32578 | 53 877 570 983 469 861 523 555 1071 2494 488 646 1063 363 230 1241 1815 961 898 1503 301 926 1039 160 2104 1041 1248 939 2052 1363 1383 2358 Core 131 | 2 . . . . . . . . . . . . . 129 . . . . . . . . . . . . . . . . . Treads 5960 | 51 877 570 983 469 861 523 555 1071 . . . . . . . . . . . . . . . . . . . . . . . Legs . | . . . . . . . . . . . . . . . . . . . . . . . . . . . . . . . . Wheels . | . . . . . . . . . . . . . . . . . . . . . . . . . . . . . . . . Hover 6103 | . . . . . . . . . . . . . . . . . . . . . . . . . . . . 999 1363 1383 2358 Flight 20384 | . . . . . . . . . 2494 488 646 1063 363 101 1241 1815 961 898 1503 301 926 1039 160 2104 1041 1248 939 1053 . . . Fastest Speed 5 | 50 160 240 160 160 145 148 160 160 23 23 23 23 23 23 5 15 24 24 14 24 14 22 27 20 22 19 21 19 33 33 29 Average Speed 54 | 155 188 240 160 160 147 155 160 160 23 23 23 23 23 374 23 26 24 24 24 24 23 26 30 22 23 20 21 28 33 39 32 Slowest Speed 700 | 160 240 240 240 160 160 160 160 160 94 23 23 23 23 700 99 32 24 24 95 24 95 96 96 98 24 21 21 94 33 96 93 Overloaded Moves 97 | . . . . . . . . . . . . . . . 15 6 . . 16 . 55 . . . . . . 5 . . . Propulsion Burnouts 1 | . . . . . . . . . . . . . . . . . . . . . 1 . . . . . . . . . . Robots Hopped 104 | . . . . . . . . . 14 . 4 9 . . 13 2 . 2 . . 4 9 . 4 4 31 5 3 . . . Potential Cave-ins 13 | . . . . . . . . . . . . . . . . . . . . . . . . . . . . 13 . . . Cave-ins Triggered 2 | . . . . . . . . . 1 . . . . . . . . . . . . . . . . . . 1 . . . Teleports 4 | . . . . . . . . . . . . . . . . . . . . . . . . . . . . 1 . 1 2 Exploration Rate (%) 71 | 4 95 99 96 96 72 85 96 89 61 96 12 87 71 80 84 35 91 89 91 57 30 63 96 65 83 41 91 43 39 43 93 Regions Visited 31 Branch Regions 20 Pre-discovered Areas 13 | . 4 . 2 . 1 . 3 . 2 . . . . . . . . . . 1 . . . . . . . . . . . Known Exits Taken 26 | . 1 . 1 1 1 1 1 1 . . 1 1 1 1 1 1 1 1 1 1 1 1 1 1 1 1 1 1 1 . . Unknown Exits Taken 3 | 1 . 1 . . . . . . . . . . . . . . . . . . . . . . . . . . . 1 . Scrap Searched 18 | . . 1 . 2 . . . 6 . . . . . . . . 4 4 . 1 . . . . . . . . . . . Spaces Dug 220 | . . . 12 1 22 . . . 33 . 3 . . . 8 10 6 10 1 8 3 9 . 24 8 13 8 8 7 22 4 Terrain Destroyed 904 | . 17 . 12 2 95 38 . . 33 161 4 2 1 1 13 72 8 12 107 12 109 27 . 30 8 13 9 9 18 41 50 Melee 152 | . . . . . 7 . . . 33 . 1 . . . 6 8 6 10 1 8 3 9 . 24 7 13 8 8 . . . Projectile 132 | . . . 1 2 . . . . . . . . . 1 7 3 2 2 . 4 1 5 . 6 1 . 1 1 10 40 45 AOE 600 | . 17 . 11 . 88 38 . . . 161 . . . . . 61 . . 106 . 105 13 . . . . . . . . . Terrain Rammed . | . . . . . . . . . . . . . . . . . . . . . . . . . . . . . . . . Walls Destroyed . | . . . . . . . . . . . . . . . . . . . . . . . . . . . . . . . . Machines Disabled . | . . . . . . . . . . . . . . . . . . . . . . . . . . . . . . . . Actions | -11 -10 -10 -9 -9 -8 -8 -8 -8 -6 -6 -6 -6 -6 -6 -6 -5 -5 -5 -5 -4 -4 -4 -4 -3 -3 -2 -2 -2 -1 -1 -1 --------- Run | Yrd Mat Min Mat Min Mat Sto Rec Scr Fac Was Fac Ext Cet Arc Hub Fac Upp Upp War Pro Fac Arm Lab Res Tes Res Qua Frg Acc Com Ac0 Total 42122 | 68 1100 615 1445 1661 1193 637 575 1088 3020 653 951 1613 789 462 1470 2012 1163 1056 2008 322 967 1235 683 2245 1158 1315 1170 2688 1817 2301 2642 Wait 6306 | . 88 7 258 1180 113 9 3 1 381 134 277 375 367 221 179 79 192 139 251 6 9 94 507 9 40 23 156 148 367 678 15 Move 32357 | 53 876 569 982 468 860 522 554 1070 2470 487 637 1047 362 229 1216 1810 960 893 1502 300 917 1020 159 2095 1032 1194 928 2044 1362 1382 2357 Hop 86 | . . . . . . . . . 10 . 4 6 . . 11 2 . 2 . . 4 9 . 4 4 22 5 3 . . . Pick Up 245 | 3 17 7 18 . 21 7 . 4 13 1 3 . 7 1 1 10 . 1 9 . 2 14 2 4 7 5 7 47 7 18 9 Fast Attach 186 | 7 4 1 3 3 3 13 . 1 10 2 2 1 2 1 1 13 . . 12 . 5 6 5 25 6 1 12 24 3 12 8 Attach 143 | . 3 . 4 . 4 . . 1 14 2 1 . . . . 11 1 2 8 . 7 20 1 4 1 3 3 29 3 12 9 Detach 116 | . 3 . 1 . . 1 1 1 4 3 1 . . 1 . 15 1 2 7 . 4 19 2 6 1 . 7 18 . 13 5 Swap 393 | 1 12 4 30 3 33 14 4 6 21 5 6 7 15 1 8 11 . 3 21 3 4 7 . 19 13 11 15 36 21 18 41 Drop 328 | . 5 10 28 3 27 20 1 4 25 1 3 . 9 1 3 16 . 1 13 . 1 17 2 26 11 6 11 50 2 23 9 Fire 1223 | 4 87 15 119 3 112 42 8 . . 13 11 82 15 6 20 11 2 2 181 4 5 8 . 6 2 . 4 142 52 78 189 Melee 457 | . . . . . 13 4 . . 71 5 6 . 12 1 29 33 7 11 1 9 9 21 5 47 41 50 22 60 . . . Ram . | . . . . . . . . . . . . . . . . . . . . . . . . . . . . . . . . Kick . | . . . . . . . . . . . . . . . . . . . . . . . . . . . . . . . . Crush 26 | . 5 2 2 1 7 5 4 . . . . . . . . . . . . . . . . . . . . . . . . Escape Stasis 181 | . . . . . . . . . . . . 30 . . . . . . . . . . . . . . . 87 . 64 . Rewire 72 | . . . . . . . . . 1 . . 65 . . . . . . 3 . . . . . . . . . . 3 . Trap 3 | . . . . . . . . . . . . . . . 2 1 . . . . . . . . . . . . . . . Miscellaneous . | . . . . . . . . . . . . . . . . . . . . . . . . . . . . . . . . Route ------- -11/Scrapyard -10/Materials (discovered 6 exits: *Mat x3 / *Min x2 / Sub) -10/Mines (discovered 3 exits: *Mat x2 / *Sub) -9/Materials (discovered 4 exits: *Mat x3 / *Min) -9/Mines (discovered 3 exits: *Mat x2 / [*Exi]) -8/Materials (discovered 3 exits: *Fac x2 / *Sto) -8/Storage (discovered 2 exits: Fac / *Rec) -8/Recycling (discovered 2 exits: *Fac / *Scr) -8/Scraptown (discovered 2 exits: *Fac x2) -6/Factory (discovered 7 exits: *Fac x3 / *Low x2 / *Ext x2) -6/Waste -6/Factory (discovered 5 exits: *Fac / Low x2 / *Ext x2) -6/Extension (discovered 3 exits: *Fac x2 / *Cet) -6/Cetus (discovered 2 exits: *Fac / *Arc) -6/Archives (discovered 3 exits: *Fac / *Hub x2) -6/Hub_04(d) (discovered 4 exits: *Fac x4) -5/Factory (discovered 3 exits: *Fac / *Upp x2) -5/Upper Caves -5/Upper Caves -5/Warlord -4/Proximity Caves -4/Factory (discovered 5 exits: *Res x2 / Upp x2 / *Arm) -4/Armory (discovered 3 exits: *Res x2 / *Lab) -4/Lab -3/Research (discovered 4 exits: *Res x2 / *Tes x2) -3/Testing -2/Research (discovered 3 exits: *Acc / *Qua x2) -2/Quarantine (discovered 3 exits: *Acc / [*Sec] / *Frg) -2/Protoforge -1/Access -1/Command (discovered 3 exits: [*Sur x2] / *Ac0) -1/Access_0 0b11 Command History --------- Turn | Location | Event 38 | -11/Scrapyard | Discovered new exit (range 15) 111 | -11/Scrapyard | Entered Materials 308 | -10/Materials | Build established: Mutant 584 | -10/Materials | Core integrity fell below 50% 618 | -10/Materials | Discovered new exit (range 14) 801 | -10/Materials | Discovered new exit (range 14) 806 | -10/Materials | Discovered new exit (range 12) 831 | -10/Materials | Build established: Scavenger-Mutant 1737 | -10/Materials | Repaired Lgt. Treads 1774 | -10/Materials | Identified exit to Mines 1774 | -10/Materials | Identified exit to Subcaves 1813 | -10/Materials | Learned Storage emergency access door positions 1821 | -10/Materials | Learned location of 1 exit from Storage 1823 | -10/Materials | Central database locked down 1827 | -10/Materials | Learned location of Recycling (-8) 1839 | -10/Materials | Learned 2 Mines zone layouts 1952 | -10/Materials | Discovered new exit (range 14) 2126 | -10/Materials | Entered Mines 2380 | -10/Mines | Discovered new exit (range 9) 2395 | -10/Mines | Build established: Mutant 2455 | -10/Mines | Escorted by a lone wolf Derelict 2456 | -10/Mines | Discovered new exit (range 6) 2519 | -10/Mines | Learned Materials security intel 2716 | -10/Mines | Joined a pair of Derelicts in attacking an 0b10 outpost 2729 | -10/Mines | Learned 2 Materials zone layouts 3014 | -10/Mines | Build established: Scavenger-Mutant 3118 | -10/Mines | Lost 4 allies 3240 | -10/Mines | Found a Scrap Suit stashed away for nefarious purposes 3566 | -10/Mines | Entered Materials 3566 | -9/Materials | Evolved 2 slots: Propulsion x1, Utility x1 3567 | -9/Materials | Identified exit to Mines 3931 | -9/Materials | Discovered new exit (range 9) 4630 | -9/Materials | Discovered new exit (range 9) 4644 | -9/Materials | Central database locked down 5192 | -9/Materials | Discovered new exit (range 4) 5253 | -9/Materials | Build established: Mutant 5516 | -9/Materials | Learned 2 Storage zone layouts 5610 | -9/Materials | Loaded intel: 7 trap records 5645 | -9/Materials | Learned 4 Materials zone layouts 5672 | -9/Materials | Learned 4 Recycling zone layouts 5707 | -9/Materials | Learned Materials emergency access door positions 5750 | -9/Materials | Learned location of Zion (-6) 5802 | -9/Materials | Learned location of 2 exits from Materials 5835 | -9/Materials | Entered Mines 5836 | -9/Mines | Identified exit to Materials 5864 | -9/Mines | Assembled infested the area 6253 | -9/Mines | Found the Drone Emporium 6261 | -9/Mines | Found Prototype Device 6261 | -9/Mines | Identified Decoy Drone Bay 7586 | -9/Mines | Deemed a non-threat by the Exiles lab entrance 7586 | -9/Mines | Discovered new exit (range 5) 7786 | -9/Mines | Entered Materials 7786 | -8/Materials | Evolved 2 slots: Propulsion x1, Utility x1 7787 | -8/Materials | Identified exit to Storage 7788 | -8/Materials | Identified exit to Factory 8595 | -8/Materials | Garrison activated, responded to threat 8859 | -8/Materials | Learned 4 Factory zone layouts 8888 | -8/Materials | Found Prototype Launcher 8888 | -8/Materials | Identified Rocket Array 8893 | -8/Materials | Found Rocket Array 8903 | -8/Materials | Learned Factory fabricator intel 8935 | -8/Materials | Learned Factory trap positions 8957 | -8/Materials | Learned 4 Recycling zone layouts 8989 | -8/Materials | Learned 4 Factory zone layouts 9021 | -8/Materials | Learned location of 1 exit from Extension 9064 | -8/Materials | Learned location of 1 exit from Storage 9338 | -8/Materials | System corruption reached 10% 9612 | -8/Materials | Entered Storage 9614 | -8/Storage | Identified exit to Recycling 9941 | -8/Storage | Met 01-MTF 9999 | -8/Storage | Build established: Scavenger-Mutant 10603 | -8/Storage | Used back door to open Recycling access 10609 | -8/Storage | Entered Recycling 10609 | -8/Recycling | Accompanied by 1 ally (01-MTF) 10610 | -8/Recycling | Identified exit to Factory 10611 | -8/Recycling | Identified exit to Scraptown 11267 | -8/Recycling | Learned Factory recycling unit intel 11388 | -8/Recycling | Learned Storage emergency access door positions 11466 | -8/Recycling | Learned location of Lower Caves (-6) 11470 | -8/Recycling | Scanned before Scraplab entrance 11508 | -8/Recycling | Learned Storage emergency access door positions 11527 | -8/Recycling | Entered Scraptown 11527 | -8/Scraptown | System corruption cleaned by C-Scrubber 11739 | -8/Scraptown | Visited UFD Registry 11739 | -8/Scraptown | Registered with UFD as "Rustskull" 11761 | -8/Scraptown | Visited Cyclists 11777 | -8/Scraptown | Entered Cyclist Reading Room 11825 | -8/Scraptown | Visited Assassins FH 11838 | -8/Scraptown | Visited Awakened 11852 | -8/Scraptown | Visited Comm Corps 11884 | -8/Scraptown | Visited The Evicted 11903 | -8/Scraptown | Visited Red Mages 11915 | -8/Scraptown | Heard Great Nut preacher, LISTEN AND RECITE! 11916 | -8/Scraptown | Visited Fellowship of the Rings 12214 | -8/Scraptown | Discovered exit to Factory (range 11) 12481 | -8/Scraptown | Visited Junk Repository 12526 | -8/Scraptown | Visited Botcube Research 12553 | -8/Scraptown | Visited Science Guys 12749 | -8/Scraptown | Visited DA-N13 Charitable Foundation 12765 | -8/Scraptown | Found DCF Scrap (29 items) 12814 | -8/Scraptown | Visited Abandonware Association 12830 | -8/Scraptown | Learned abandonware demo "REVENGE.EXE" 12830 | -8/Scraptown | Learned abandonware demo "TRNCOAT.EXE" 12862 | -8/Scraptown | Visited Scrapoid Research Area 12894 | -8/Scraptown | Visited Supply Room 12936 | -8/Scraptown | Visited Observation Area 13001 | -8/Scraptown | Visited Chapter 10 13170 | -8/Scraptown | Met Optimus 13170 | -8/Scraptown | Accepted into 0bPrime 13252 | -8/Scraptown | Discovered exit to Factory (range 5) 13258 | -8/Scraptown | Entered Factory 13258 | -6/Factory | Evolved 4 slots: Propulsion x1, Utility x3 13260 | -6/Factory | Loaded intel: 85 trap records 13261 | -6/Factory | Loaded intel: 6 fabricator locations 13262 | -6/Factory | Loaded intel: 8 recycling unit locations 13383 | -6/Factory | Crushed by falling debris 13602 | -6/Factory | Build established: Hacker-Sprinter 13604 | -6/Factory | Fabricated Cld. VTOL Module (x1) 13721 | -6/Factory | Identified exit to Lower Caves 13721 | -6/Factory | Identified exit to Extension 13734 | -6/Factory | Loaded intel: 8 recycling unit locations 13748 | -6/Factory | Learned location of Protoforge (-2) 13764 | -6/Factory | Spotted B-75 Beast 13897 | -6/Factory | Learned 4 Factory zone layouts 13927 | -6/Factory | Discovered new exit (range 5) 13928 | -6/Factory | Identified exit to Factory 13961 | -6/Factory | Learned 2 Upper Caves zone layouts 13976 | -6/Factory | Learned location of 1 exit from Extension 13981 | -6/Factory | Learned location of 2 exits from Archives 13986 | -6/Factory | Learned location of Warlord (-5) 14289 | -6/Factory | Fabricated Cld. VTOL Module (x1) 14366 | -6/Factory | Fabricated Cld. VTOL Module (x1) 14436 | -6/Factory | Fabricated Cld. VTOL Module (x1) 14471 | -6/Factory | Imp. System Shield fried by hacking feedback 14486 | -6/Factory | Sucked down chute 14486 | -6/Factory | Entered Waste 14487 | -6/Waste | Met a frightened Derelict 14494 | -6/Waste | Spotted C-40 Crusher 14494 | -6/Waste | Spotted C-40 Crusher 14495 | -6/Waste | Spotted C-40 Crusher 14515 | -6/Waste | Destroyed C-40 Crusher 14519 | -6/Waste | Spotted C-40 Crusher 14524 | -6/Waste | Destroyed C-40 Crusher 14543 | -6/Waste | Spotted C-40 Crusher 14544 | -6/Waste | Spotted C-40 Crusher 14545 | -6/Waste | Destroyed C-40 Crusher 14563 | -6/Waste | Destroyed C-40 Crusher 14566 | -6/Waste | Destroyed C-40 Crusher 14572 | -6/Waste | Destroyed C-40 Crusher 14585 | -6/Waste | Discovered new exit (range 20) 14636 | -6/Waste | Warlord forces began an assault 14677 | -6/Waste | Identified exit to Factory 14800 | -6/Waste | Entered Factory 14800 | -6/Factory | Accompanied by 17 allies 14879 | -6/Factory | Discovered exit to Factory (range 5) 14882 | -6/Factory | Lost 3 allies 14927 | -6/Factory | Fabricated Adv. Reaction Control System? 15155 | -6/Factory | Build established: Machinist-Scout 15155 | -6/Factory | Lost 6 allies 15285 | -6/Factory | Entered Extension 15285 | -6/Extension | Accompanied by 5 allies 15466 | -6/Extension | Loaded intel: 2 recycling unit locations 15501 | -6/Extension | Scrapoids reinforcements arrived? 15549 | -6/Extension | Rescued A7 15600 | -6/Extension | Rescued a captive Derelict 15604 | -6/Extension | Rescued a captive Derelict 15655 | -6/Extension | Disrupted transfer network 15730 | -6/Extension | Spotted B-75 Beast 15783 | -6/Extension | Allies destroyed B-75 Beast 15786 | -6/Extension | Spotted B-75 Beast 15808 | -6/Extension | Allies destroyed B-75 Beast 15823 | -6/Extension | Attached CPS modules to A7. 15854 | -6/Extension | Lost 3 allies 15868 | -6/Extension | Rescued a captive Derelict 16079 | -6/Extension | Rescued a captive Derelict 16166 | -6/Extension | Discovered new exit (range 6) 16247 | -6/Extension | Identified exit to Cetus 16254 | -6/Extension | Entered Cetus 16254 | -6/Cetus | Accompanied by 12 allies (A7) 16259 | -6/Cetus | Acquired a Cetus Manufacturing Module code from A7 16262 | -6/Cetus | Spotted Cetus Guard 16262 | -6/Cetus | Spotted Cetus Guard 16265 | -6/Cetus | Destroyed Cetus Guard 16265 | -6/Cetus | Destroyed Cetus Guard 16265 | -6/Cetus | Spotted Cetus Guard 16266 | -6/Cetus | Spotted Cetus Guard 16273 | -6/Cetus | Allies destroyed Cetus Guard 16279 | -6/Cetus | Destroyed Cetus Guard 16308 | -6/Cetus | Lost 3 allies 16341 | -6/Cetus | Build established: Commander-Sprinter 16362 | -6/Cetus | Discovered new exit (range 20) 16370 | -6/Cetus | Escorted A7 to Cetus Mainframe 16460 | -6/Cetus | Spotted Cetus Guard 16460 | -6/Cetus | Spotted Cetus Guard 16460 | -6/Cetus | Destroyed Cetus Guard 16463 | -6/Cetus | Spotted Cetus Guard 16463 | -6/Cetus | Spotted Cetus Guard 16472 | -6/Cetus | Destroyed Cetus Guard 16472 | -6/Cetus | Destroyed Cetus Guard 16475 | -6/Cetus | Discovered exit to Factory (range 20) 16478 | -6/Cetus | Destroyed Cetus Guard 16505 | -6/Cetus | Found Prototype Protection 16505 | -6/Cetus | Identified Med. Regenerative Plating 16516 | -6/Cetus | Murdered A7 16518 | -6/Cetus | Extracted ID and sensor layout for unrecognized location from A7's data core 16566 | -6/Cetus | Met Revision 17 16587 | -6/Cetus | Identified exit to Archives 16646 | -6/Cetus | Started Cetus Manufacturing Module 16671 | -6/Cetus | Manufactured an Enhanced Grunt 16696 | -6/Cetus | Manufactured an Enhanced Grunt 16721 | -6/Cetus | Manufactured an Enhanced Grunt 16746 | -6/Cetus | Manufactured an Enhanced Grunt 16771 | -6/Cetus | Manufactured an Enhanced Grunt 16817 | -6/Cetus | Entered Archives 16817 | -6/Archives | Accompanied by 11 allies 16818 | -6/Archives | Identified exit to Hub_04(d) 16901 | -6/Archives | Discovered exit to Hub_04(d) (range 20) 16981 | -6/Archives | Build established: Commander-Scout 17311 | -6/Archives | Build established: Commander-Assassin 17918 | -6/Archives | Entered Hub_04(d) 17918 | -6/Hub_04(d) | Accompanied by 10 allies 17945 | -6/Hub_04(d) | Discovered exit to Factory (range 5) 18056 | -6/Hub_04(d) | Discovered exit to Factory (range 9) 18130 | -6/Hub_04(d) | Discovered exit to Factory (range 18) 18151 | -6/Hub_04(d) | Build established: Commander-Scout 18195 | -6/Hub_04(d) | Lost 3 allies 18272 | -6/Hub_04(d) | Discovered exit to Factory (range 19) 18282 | -6/Hub_04(d) | Garrison activated, responded to threat 18327 | -6/Hub_04(d) | Lost 4 allies 18332 | -6/Hub_04(d) | Spotted B-75 Beast 18455 | -6/Hub_04(d) | Network Hub disabled 18458 | -6/Hub_04(d) | Spotted Lightning 18458 | -6/Hub_04(d) | Spotted Lightning 18470 | -6/Hub_04(d) | Network Hub disabled 18470 | -6/Hub_04(d) | Spotted Lightning 18474 | -6/Hub_04(d) | Core integrity fell below 50% 18479 | -6/Hub_04(d) | Spotted Lightning 18521 | -6/Hub_04(d) | Entered Factory 18521 | -5/Factory | Evolved 2 slots: Power x1, Propulsion x1 18525 | -5/Factory | Discovered new exit (range 19) 18563 | -5/Factory | Identified exit to Factory 18622 | -5/Factory | Repaired Cld. Cesium-ion Thruster 18668 | -5/Factory | Identified exit to Upper Caves 18840 | -5/Factory | Fabricated Cld. VTOL Module (x1) 18904 | -5/Factory | Loaded intel: 8 recycling unit locations 19006 | -5/Factory | Unchained authorized (QV-33N) 19266 | -5/Factory | Build established: Scout 19267 | -5/Factory | Entered Upper Caves 19414 | -5/Upper Caves | Learned 4 Factory zone layouts 19416 | -5/Upper Caves | Learned location of 1 exit from Factory 19638 | -5/Upper Caves | Discovered new exit (range 4) 19639 | -5/Upper Caves | Identified exit to Upper Caves 19713 | -5/Upper Caves | Entered another Upper Caves area 19821 | -5/Upper Caves | Discovered new exit (range 17) 19825 | -5/Upper Caves | Identified exit to Warlord 19840 | -5/Upper Caves | Encountered a Warlord checkpoint 20108 | -5/Upper Caves | Entered Warlord 20116 | -5/Warlord | System corruption cleaned by Quarantine Array 20202 | -5/Warlord | Found Prototype Processor 20202 | -5/Warlord | Identified Exp. Targeting Computer 20205 | -5/Warlord | Found Prototype Processor 20205 | -5/Warlord | Identified Spectral Analyzer 20207 | -5/Warlord | Found Prototype Device 20207 | -5/Warlord | Identified Thermal Barrier 20258 | -5/Warlord | Visited the Vortex Lab 20260 | -5/Warlord | Found Prototype Piercing Weapon 20260 | -5/Warlord | Identified Vortex Lance 20268 | -5/Warlord | Found Vortex Lance 20280 | -5/Warlord | Warlord's base attacked by MAIN.C 20282 | -5/Warlord | Rebuked by Warlord 20465 | -5/Warlord | Lost 3 allies 20498 | -5/Warlord | Warlord forces counterattacked 20580 | -5/Warlord | Spotted Executioner 20580 | -5/Warlord | Spotted Executioner 20581 | -5/Warlord | Spotted Striker 20665 | -5/Warlord | Lost 20 allies 20670 | -5/Warlord | Found Prototype Processor 20717 | -5/Warlord | Spotted Executioner 20748 | -5/Warlord | Attached CPS modules to Executioner. 20758 | -5/Warlord | Identified Exp. Core Analyzer 20763 | -5/Warlord | Found Exp. Core Analyzer 20788 | -5/Warlord | Spotted Striker 20789 | -5/Warlord | Build established: Scavenger-Scout 20799 | -5/Warlord | Spotted B-75 Beast 20823 | -5/Warlord | Attached CPS modules to Striker. 20829 | -5/Warlord | Spotted B-86 Titan 20847 | -5/Warlord | P-80 Master assimilated allied VY-FR8(Y) 20955 | -5/Warlord | Warlord base infiltrated, sounded retreat 20965 | -5/Warlord | Spotted Executioner 20967 | -5/Warlord | Spotted Executioner 21004 | -5/Warlord | Lost 6 allies 21018 | -5/Warlord | Spotted B-75 Beast 21057 | -5/Warlord | Lost 3 allies 21074 | -5/Warlord | Spotted Executioner 21094 | -5/Warlord | Spotted Striker 21100 | -5/Warlord | Build established: Scavenger-Sprinter 21123 | -5/Warlord | Spotted Executioner 21129 | -5/Warlord | Spotted Executioner 21133 | -5/Warlord | Spotted Executioner 21136 | -5/Warlord | Destroyed Executioner 21157 | -5/Warlord | Destroyed 8 combat bots 21171 | -5/Warlord | Discovered new exit (range 13) 21173 | -5/Warlord | Identified exit to Proximity Caves 21173 | -5/Warlord | Entered Proximity Caves 21176 | -4/Proximity Caves | Attracted the attention of an 0b10 checkpoint 21181 | -4/Proximity Caves | Learned location of 1 exit from Research 21201 | -4/Proximity Caves | Lost 13 allies 21256 | -4/Proximity Caves | Attracted the attention of an 0b10 outpost 21263 | -4/Proximity Caves | Learned Research terminal intel 21274 | -4/Proximity Caves | Discovered exit to Factory (range 16) 21288 | -4/Proximity Caves | Entered Factory 21288 | -4/Factory | Evolved 2 slots: Utility x2 21289 | -4/Factory | Identified exit to Upper Caves 21290 | -4/Factory | Identified exit to Research 21298 | -4/Factory | Found Prototype Processor 21313 | -4/Factory | Identified exit to Armory 21345 | -4/Factory | Unchained authorized (QV-33N) 21421 | -4/Factory | Destroyed 9 combat bots 21449 | -4/Factory | Identified Exp. Signal Interpreter 21460 | -4/Factory | Lost 3 parts (1n1u1w) 21471 | -4/Factory | Spotted B-86 Titan 21484 | -4/Factory | Discovered exit to Research (range 14) 21510 | -4/Factory | Loaded intel: 8 recycling unit locations 21573 | -4/Factory | Lost 6 parts (2p2n2u) 21576 | -4/Factory | Entered Armory 21718 | -4/Armory | Found Exp. Signal Interpreter 22002 | -4/Armory | Discovered exit to Research (range 4) 22015 | -4/Armory | Loaded intel: 2 recycling unit locations 22020 | -4/Armory | Spotted B-86 Titan 22033 | -4/Armory | Discovered exit to Research (range 5) 22062 | -4/Armory | Lost 3 parts (1p2u) 22062 | -4/Armory | Found Fusion Bomb Launcher 22064 | -4/Armory | Found Gamma Bomb Array 22067 | -4/Armory | Scraphulk reinforcements arrived? 22087 | -4/Armory | Discovered new exit (range 2) 22087 | -4/Armory | Identified exit to Lab 22088 | -4/Armory | Entered Lab 22088 | -4/Lab | Discovered exit to Research (range 9) 22091 | -4/Lab | Hidden lab's door opened automatically 22091 | -4/Lab | Sensor layout match revealed 22092 | -4/Lab | Gained access to the hidden lab's interior 22126 | -4/Lab | Found Alien Artifact 22130 | -4/Lab | Found Alien Artifact 22130 | -4/Lab | Identified Integrated Dissipator 22130 | -4/Lab | Installed Integrated Dissipator, increased core heat dissipation (+20) 22137 | -4/Lab | Found Alien Artifact 22137 | -4/Lab | Identified Core Regenerator 22137 | -4/Lab | Used Core Regenerator, restored core integrity (+287) 22146 | -4/Lab | Found Prototype Device 22146 | -4/Lab | Identified AEGIS Remote Shield 22148 | -4/Lab | Found Prototype Hackware 22148 | -4/Lab | Identified Quantum Router 22151 | -4/Lab | Found Prototype Energy Cannon 22151 | -4/Lab | Identified Warp Cannon 22154 | -4/Lab | Found Prototype Energy Cannon 22160 | -4/Lab | Unable to decrypt terminal 22484 | -4/Lab | Build established: Hacker-Mutant 22668 | -4/Lab | Entered Research 22668 | -3/Research | Evolved 2 slots: Propulsion x1, Utility x1 22669 | -3/Research | Identified exit to Testing 22670 | -3/Research | Loaded intel: 21 terminal locations 22735 | -3/Research | Spotted B-86 Titan 22775 | -3/Research | Discovered new exit (range 23) 22868 | -3/Research | Revision forces began assault on 0b10 22885 | -3/Research | Discovered new exit (range 19) 22890 | -3/Research | Identified exit to Research 22977 | -3/Research | Found Prototype Device 22977 | -3/Research | Identified Exp. Shield Generator 23000 | -3/Research | Build established: Hacker-Sprinter 23112 | -3/Research | Loaded intel: 5 recycling unit locations 23151 | -3/Research | Found Prototype Launcher 23151 | -3/Research | Identified Hellfire Missile Launcher 23207 | -3/Research | Identified Transdimensional Reconstructor 23207 | -3/Research | Identified Potential Cannon 23322 | -3/Research | Build established: Hacker-Ninja 23336 | -3/Research | Found Adv. Micro-nuke Launcher 23368 | -3/Research | Research terminal network offline 23382 | -3/Research | Entered Testing 23446 | -3/Testing | Discovered exit to Research (range 19) 23451 | -3/Testing | Found Prototype Ballistic Gun 23451 | -3/Testing | Identified Hyp. Multirail 23474 | -3/Testing | Found Prototype Protection 23474 | -3/Testing | Identified Lgt. Regenerative Plating 23482 | -3/Testing | Found Prototype Protection 23519 | -3/Testing | Identified SHELL Armor 23531 | -3/Testing | Found Prototype Energy Cannon 23531 | -3/Testing | Identified Cld. Nova Cannon 23812 | -3/Testing | Found Med. Regenerative Plating 23816 | -3/Testing | Entered Research 23816 | -2/Research | Evolved 2 slots: Propulsion x1, Utility x1 23935 | -2/Research | Identified exit to Quarantine 23946 | -2/Research | Found Prototype Processor 23946 | -2/Research | Identified Exp. Melee Analysis Suite 24038 | -2/Research | Discovered new exit (range 16) 24104 | -2/Research | Unchained authorized (CL-0N3) 24151 | -2/Research | Spotted B-90 Cyclops 24205 | -2/Research | P-80 Master reconstituted as Alpha 7 24205 | -2/Research | Spotted Alpha 7 24236 | -2/Research | Spotted B-90 Cyclops 24240 | -2/Research | Entered Quarantine 24247 | -2/Quarantine | Found Alien Artifact 24268 | -2/Quarantine | Found Alien Reactor 24271 | -2/Quarantine | Identified Matter Drive 24290 | -2/Quarantine | Identified Subatomic Replicator 24309 | -2/Quarantine | Found Alien Artifact 24311 | -2/Quarantine | Found Alien Artifact 24311 | -2/Quarantine | Identified Dimensional Node Initializer (x2) 24311 | -2/Quarantine | Initialized slip node 24314 | -2/Quarantine | Found Transdimensional Reconstructor 24316 | -2/Quarantine | Found Alien Artifact 24365 | -2/Quarantine | Discovered new exit (range 9) 24367 | -2/Quarantine | Identified exit to Access 24403 | -2/Quarantine | Found Alien Slashing Weapon 24403 | -2/Quarantine | Identified Sigix Broadsword 24419 | -2/Quarantine | Found Alien Artifact 24508 | -2/Quarantine | Identified Terrabomb 24508 | -2/Quarantine | Identified Hpw. Transdimensional Reconstructor 24584 | -2/Quarantine | Spotted Fortress 24599 | -2/Quarantine | Discovered new exit (range 6) 24599 | -2/Quarantine | Discovered new exit (range 6) 24599 | -2/Quarantine | Identified exit to Protoforge 24709 | -2/Quarantine | Entered Protoforge 24796 | -2/Protoforge | Spotted Hotshot 24796 | -2/Protoforge | Spotted Hotshot 24797 | -2/Protoforge | Spotted Hotshot 24803 | -2/Protoforge | Discovered exit to Access (range 15) 24806 | -2/Protoforge | Initialized slip node 24829 | -2/Protoforge | Spotted Hotshot 24855 | -2/Protoforge | Spotted Hotshot 24863 | -2/Protoforge | Spotted Hotshot 24890 | -2/Protoforge | Spotted B-90 Cyclops 24893 | -2/Protoforge | Superfortress began startup sequence 24912 | -2/Protoforge | Used Terrabomb 24912 | -2/Protoforge | Additional patrols dispatched to research labs 24925 | -2/Protoforge | Crushed by falling debris 24930 | -2/Protoforge | Spotted Hotshot 24930 | -2/Protoforge | Spotted Hotshot 24944 | -2/Protoforge | Spotted Immortal 24944 | -2/Protoforge | Spotted Immortal 24956 | -2/Protoforge | Lost 3 parts (1p1n1u) 24968 | -2/Protoforge | Spotted V856-b 24968 | -2/Protoforge | Spotted V862-g 24981 | -2/Protoforge | Found Prototype Launcher 24981 | -2/Protoforge | Identified Cep. Concussive Dispersal Blaster 25037 | -2/Protoforge | Spotted Decapitator 25037 | -2/Protoforge | Spotted Decapitator 25037 | -2/Protoforge | Spotted Decapitator 25037 | -2/Protoforge | Spotted Decapitator 25078 | -2/Protoforge | Destroyed Hotshot 25088 | -2/Protoforge | Destroyed Hotshot 25175 | -2/Protoforge | Found Prototype Power Core 25175 | -2/Protoforge | Identified Cep. Zero-point Core 25180 | -2/Protoforge | Found Cep. Zero-point Core 25191 | -2/Protoforge | Destroyed Immortal 25209 | -2/Protoforge | Destroyed Immortal 25219 | -2/Protoforge | Found Exp. Jetlance 25246 | -2/Protoforge | Destroyed Decapitator 25246 | -2/Protoforge | Destroyed Decapitator 25248 | -2/Protoforge | Destroyed Decapitator 25252 | -2/Protoforge | Destroyed Decapitator 25314 | -2/Protoforge | Spotted V173-i 25321 | -2/Protoforge | Destroyed 13 combat bots 25328 | -2/Protoforge | Found Cep. Gyrokinetic System 25347 | -2/Protoforge | Destroyed V173-i 25367 | -2/Protoforge | Found Cep. Fieldthrust Drive 25383 | -2/Protoforge | Found Cep. Combat Aerolev Unit 25385 | -2/Protoforge | Found Cep. Combat Aerolev Unit 25393 | -2/Protoforge | Found Cep. Gyrokinetic System 25438 | -2/Protoforge | Found Cep. Weapon Articulator 25440 | -2/Protoforge | Found Mni. Quantum Capacitor 25458 | -2/Protoforge | Spotted Decapitator 25458 | -2/Protoforge | Spotted Decapitator 25458 | -2/Protoforge | Spotted V965-i 25458 | -2/Protoforge | Spotted V048-c 25460 | -2/Protoforge | Used Subatomic Replicator to replicate Hyp. Multirail 25475 | -2/Protoforge | Spotted Decapitator 25476 | -2/Protoforge | Destroyed Decapitator 25479 | -2/Protoforge | Destroyed Decapitator 25482 | -2/Protoforge | Destroyed Decapitator 25491 | -2/Protoforge | Destroyed V965-i 25537 | -2/Protoforge | Destroyed V048-c 25558 | -2/Protoforge | Found Cep. Gyrokinetic System 25561 | -2/Protoforge | Found Cep. Gyrokinetic System 25571 | -2/Protoforge | Found Cep. Antigrav Storage Unit 25575 | -2/Protoforge | Found Cep. NT7 Matterbank 25576 | -2/Protoforge | Found Cep. Chromion Battery 25590 | -2/Protoforge | Found Cep. Zero-point Core 25629 | -2/Protoforge | Forge Plexus network access discovered 25644 | -2/Protoforge | Found Crosscalibrator 25655 | -2/Protoforge | Build established: Scavenger-Sprinter 25688 | -2/Protoforge | Found Cep. Miniperforator 25690 | -2/Protoforge | Found Cep. Plasma Driver 25697 | -2/Protoforge | Spotted V217-g 25698 | -2/Protoforge | Spotted V034-k 25699 | -2/Protoforge | Spotted V170-g 25699 | -2/Protoforge | Found Cep. Heavy Railcannon 25724 | -2/Protoforge | Spotted Decapitator 25724 | -2/Protoforge | Spotted Decapitator 25737 | -2/Protoforge | Allies destroyed Decapitator 25745 | -2/Protoforge | Destroyed Decapitator 25783 | -2/Protoforge | Spotted Decapitator 25785 | -2/Protoforge | Spotted Decapitator 25787 | -2/Protoforge | Destroyed Decapitator 25791 | -2/Protoforge | Allies destroyed Decapitator 25809 | -2/Protoforge | Found Cep. Phase Shift Module 25810 | -2/Protoforge | Found Cep. Beam Splitter 25837 | -2/Protoforge | Found Cep. Phase Shift Module 25868 | -2/Protoforge | Spotted AP7-3 25876 | -2/Protoforge | Spotted AP7-3 25900 | -2/Protoforge | Destroyed AP7-3 25926 | -2/Protoforge | System corruption reached 10% 25932 | -2/Protoforge | Destroyed AP7-3 25961 | -2/Protoforge | Found Prototype Energy Gun 25961 | -2/Protoforge | Identified Enh. Gamma Rifle 25974 | -2/Protoforge | Found Cep. Cloak Mesh 25976 | -2/Protoforge | Found Cep. Core Analysis Suite 25981 | -2/Protoforge | Found Cep. Impact Drone Bay 25983 | -2/Protoforge | Found Faulty Cep. Impact Drone Bay 26015 | -2/Protoforge | Found Cep. Thermoelectric Network 26019 | -2/Protoforge | Found Cep. Cloak Mesh 26082 | -2/Protoforge | Found Transdimensional Reconstructor 26082 | -2/Protoforge | Warped through subspace to slip node 26082 | -2/Protoforge | Spotted Decapitator 26082 | -2/Protoforge | Spotted Decapitator 26087 | -2/Protoforge | Allies destroyed Decapitator 26094 | -2/Protoforge | Entered Access 26094 | -1/Access | Evolved 2 slots: Utility x2 26122 | -1/Access | Build established: Sprinter 26138 | -1/Access | Unchained authorized (CL-0N3) 26265 | -1/Access | U-05 Engineer reconstituted as S7 Guard 26265 | -1/Access | Spotted S7 Guard 26282 | -1/Access | Destroyed S7 Guard 26282 | -1/Access | S7 Guard reconstituted as CL-0N3 26344 | -1/Access | First assault squad dispatched 26457 | -1/Access | Destroyed 13 combat bots 26493 | -1/Access | Found Zero-point Reactor 26496 | -1/Access | Found Zero-point Reactor 26543 | -1/Access | Identified exit to Command 26557 | -1/Access | Spotted B-99 Colossus 26603 | -1/Access | O-32 Director reconstituted as V2 26603 | -1/Access | Spotted V2 26619 | -1/Access | Destroyed V2 26619 | -1/Access | V2 reconstituted as CL-0N3 26628 | -1/Access | Destroyed CL-0N3 26630 | -1/Access | Extracted schematics, analyses from CL-0N3's data core 26631 | -1/Access | Found Prototype Device 26881 | -1/Access | Unchained authorized (6S-H0T) 27032 | -1/Access | Allies destroyed 6S-H0T 27045 | -1/Access | Entered Command 27049 | -1/Command | Identified Zeronet Interface 27059 | -1/Command | Spotted B-99 Colossus 27142 | -1/Command | Spotted M Guard 27142 | -1/Command | Spotted M Guard 27142 | -1/Command | Spotted Combat Programmer 27142 | -1/Command | Spotted Combat Programmer 27165 | -1/Command | Destroyed Combat Programmer 27175 | -1/Command | Destroyed Combat Programmer 27198 | -1/Command | Destroyed M Guard 27206 | -1/Command | Destroyed M Guard 27206 | -1/Command | All MAIN.C guards destroyed 27212 | -1/Command | Found Prototype Protection 27212 | -1/Command | Identified Hvy. Regenerative Plating 27225 | -1/Command | Found Cld. Nova Cannon 27246 | -1/Command | Destroyed B-99 Colossus 27254 | -1/Command | Found Prototype Ballistic Gun 27280 | -1/Command | Scrapoid reinforcements arrived 27332 | -1/Command | Met MAIN.C 27336 | -1/Command | 0b10 Conduit disabled 27353 | -1/Command | Allies destroyed MAIN.C Shell 27354 | -1/Command | MAIN.C activated Command garrisons 27371 | -1/Command | Destroyed MAIN.C 27381 | -1/Command | Identified Multirail 27381 | -1/Command | Discovered new exit (range 41) 27381 | -1/Command | Discovered new exit (range 101) 27381 | -1/Command | Extracted map data and part IDs from MAIN.C's data core 27418 | -1/Command | Found Null Cannon 27421 | -1/Command | Found Exp. System Purifier 28053 | -1/Command | Found Centrium Heavy Armor Plating 28083 | -1/Command | Found Corrupted Exp. Core Analyzer 28123 | -1/Command | Build established: Scavenger-Sprinter 28505 | -1/Command | Warped through subspace to slip node 28505 | -1/Command | Discovered new exit (range 4) 28527 | -1/Command | Entered Access_0 28527 | -1/Access_0 | Accompanied by 5 allies 28529 | -1/Access_0 | Met Architect 28563 | -1/Access_0 | Architect warped through subspace 28602 | -1/Access_0 | Architect warped through subspace 28602 | -1/Access_0 | Subspace Access Node disabled 28632 | -1/Access_0 | Architect warped through subspace 28632 | -1/Access_0 | Spotted Enhanced Programmer 28652 | -1/Access_0 | Destroyed Enhanced Programmer 28661 | -1/Access_0 | Subspace Access Node disabled 28662 | -1/Access_0 | Spotted Enhanced Programmer 28677 | -1/Access_0 | Build established: Scavenger-Mutant 28696 | -1/Access_0 | A6 warped into view 28704 | -1/Access_0 | Allies destroyed A6 28733 | -1/Access_0 | Spotted Enhanced Programmer 28749 | -1/Access_0 | Destroyed Enhanced Programmer 28770 | -1/Access_0 | Spotted Enhanced Programmer 28775 | -1/Access_0 | Destroyed Enhanced Programmer 28793 | -1/Access_0 | Found Integrated Dissipator 28793 | -1/Access_0 | Installed Integrated Dissipator, increased core heat dissipation (+20) 28815 | -1/Access_0 | Destroyed Enhanced Programmer 28822 | -1/Access_0 | A5 warped into view 28835 | -1/Access_0 | Architect warped through subspace 28851 | -1/Access_0 | Destroyed A5 28855 | -1/Access_0 | Architect warped through subspace 28861 | -1/Access_0 | Subspace Access Node disabled 28877 | -1/Access_0 | Lost 3 allies 28881 | -1/Access_0 | Architect warped through subspace 28905 | -1/Access_0 | Destroyed A2 28908 | -1/Access_0 | Extracted Singularity Gate Test 138-C access codes from A2's data core 28913 | -1/Access_0 | Spotted Enhanced Programmer 28921 | -1/Access_0 | Allies destroyed Enhanced Programmer 28933 | -1/Access_0 | Architect warped through subspace 28985 | -1/Access_0 | A4 warped into view 29003 | -1/Access_0 | Destroyed A4 29006 | -1/Access_0 | Architect warped through subspace 29020 | -1/Access_0 | Singularity Gate disabled 29030 | -1/Access_0 | Spotted Enhanced Programmer 29051 | -1/Access_0 | Architect warped through subspace 29077 | -1/Access_0 | Architect warped through subspace 29085 | -1/Access_0 | Spotted Enhanced Programmer 29090 | -1/Access_0 | Destroyed Enhanced Programmer 29101 | -1/Access_0 | Architect warped through subspace 29109 | -1/Access_0 | Spotted Enhanced Programmer 29119 | -1/Access_0 | Architect warped through subspace 29133 | -1/Access_0 | Subspace Access Node disabled 29181 | -1/Access_0 | Destroyed Enhanced Programmer 29194 | -1/Access_0 | Spotted Enhanced Programmer 29222 | -1/Access_0 | Destroyed Architect 29223 | -1/Access_0 | Extracted unknown sensor trigger ID from Architect's data core 29224 | -1/Access_0 | Found Hpw. Transdimensional Reconstructor 29231 | -1/Access_0 | Found Exp. Target Analyzer 29240 | -1/Access_0 | Found Enh. Gamma Rifle 29250 | -1/Access_0 | Lost 5 allies 29264 | -1/Access_0 | Destroyed Enhanced Programmer 29298 | -1/Access_0 | Spotted Enhanced Programmer 29301 | -1/Access_0 | Destroyed Enhanced Programmer 29309 | -1/Access_0 | Found Exp. Target Analyzer 29323 | -1/Access_0 | Found Prototype Device 29323 | -1/Access_0 | Identified Desublimator 29329 | -1/Access_0 | Found Exp. Weapon Cycler 29366 | -1/Access_0 | Destroyed Enhanced Programmer 29396 | -1/Access_0 | A3 warped into view 29401 | -1/Access_0 | Destroyed A3 29527 | -1/Access_0 | Build established: Scavenger-Sprinter 29548 | -1/Access_0 | Singularity Gate disabled 29688 | -1/Access_0 | Warped through subspace to slip node 29688 | -1/Access_0 | Discovered new exit (range 8) 29690 | -1/Access_0 | Warped through subspace to slip node 29695 | *** | Establishing 0b11! Last Messages --------------- >>Record "Log L.OZLVE4D5" [REDACTED] >>Record "Log L.QL67S5A3" [REDACTED] >>Record "Log L.RSL58V7F" [REDACTED] >>Record "Log L.UHGC2ASH" Despite Warlord's aggressive stance, the Derelict army has been surprisingly slow to make its move. They're doing almost too much planning and preparation... >>Record "Log L.XLJZXWC5" [REDACTED] >>Record "Log L.Y1U23ASU" [REDACTED] 29609_ System corrupted: Heat flow error (+287). 29661_ V095LQQOONCGUV8V:RGRC >FNX5>TQD9JSH6K 29688_ System corrupted: Matter fused (-6). 29688_ Warped through subspace, drawn to slip node. 29688_ EXIT=FOUND 29690_ Warped through subspace, drawn to slip node. Map ----- +----------------------------------------------------+ | | | | | | | | | | | | | | | | | | | | | | | | | | | | | | | | | ?????????????????????????????????????????????????? | | ?????????????????????????????????????????????????? | | ?????????????????????????????????????????????????? | | ?????????????????????????????????????????????????? | | ?????????????????????????????????????????????????? | | ?????????????????????????????????????????????????? | | ????????????????????????###??????????????????????? | | ???????????????????????## ##?????????????????????? | | ???????????????????????# #?????????????????????? | | ???????????????????????# @ #?????????????????????? | | ??????????????????????## #?????????????????????? | | ??????????????????????# #?????????????????????? | | ??????????????????????# ##?????????????????????? | | ??????????????????????## #?????????????????????? | | ??????????????????????# #?????????????????????? | | ??????????????????????# ##?????????????????????? | | ??????????????????????# < #?????????????????????? | | ??????????????????????# ##?????????????????????? | | ??????????????????????## #??????????????????????? | | ???????????????????????####??????????????????????? | | ?????????????????????????????????????????????????? | | ?????????????????????????????????????????????????? | | ?????????????????????????????????????????????????? | | ?????????????????????????????????????????????????? | | ?????????????????????????????????????????????????? | | ?????????????????????????????????????????????????? | | ?????????????????????????????????????????????????? | | ?????????????????????????????????????????????????? | | ?????????????????????????????????????????????????? | | ?????????????????????????????????????????????????? | | ?????????????????????????????????????????????????? | | ?????????????????????????????????????????????????? | | ?????????????????????????????????????????????????? | | ?????????????????????????????????????????????????? | +----------------------------------------------------+ Best States ------------- Heat Dissipation 108 Energy Generation 61 Energy Capacity 1140 Matter Stores 300 Matter Capacity 300 Sight Range 24 Robot Scan Range 16 Terrain Scan Range 24 Terrain Scan Density 10 ECM Strength 1 Cloak Strength 9 Additional Mass Support 25 Armor Coverage 900 Resistance: KI 25 Resistance: TH 75 Resistance: EM 15 Utility Shielding 90 Weapon Shielding 90 Point Defense Rating 160 Weapon Cycling 30 Melee Speed Boost 50 Phase Shifting 25 Evasion (%) 97 Targeting Accuracy 30 Melee Accuracy 17 Target Analysis 15 Core Analysis 11 Armor Integrity Analysis 40 Recoil Reduction 4 Offensive Hacking 30 Defensive Hacking 26 Authchip Count 3 Item Schematics ----------------- Hacking Suite | -8/Recycling | Hacked System Shield | -8/Recycling | Hacked CPS Tube | -6/Factory | Scanalyzed Cld. VTOL Module | -6/Factory | Hacked Powered Armor | -6/Factory | Hacked Adv. Gravity Neutralizer | -5/Factory | Scanalyzed Nanoactuators | -4/Factory | Hacked Adv. Actuator Array | -4/Factory | Hacked Cmb. Antigrav System | -4/Factory | Hacked Lgt. Quantum Reactor | -4/Factory | Hacked Impulse Thruster Array | -4/Armory | Hacked Tesla Bomb Launcher | -3/Testing | Archive Imp. Matter Neutralizer | -3/Testing | Archive Nanosword | -2/Quarantine | Scanalyzed Exp. Melee Analysis Suite | -2/Protoforge | Archive Spectral Analyzer | -2/Protoforge | Archive Cld. Antigrav System | -2/Protoforge | Archive Quantum Shading Machine | -2/Protoforge | Archive Tactical Quantum Warhead | -2/Protoforge | Archive Gravity Neutralizer | -2/Protoforge | Archive Robot Schematics ------------------ A-02 Transporter | -2/Protoforge | Archive A-15 Conveyor | -2/Protoforge | Archive K-01 Serf | -1/Access | Archive T-07 Excavator | -1/Access | Archive R-06 Scavenger | -1/Access | Archive R-10 Processor | -1/Access | Archive M-14 Sweeper | -1/Access | Archive M-22 Extractor | -1/Access | Archive M-30 Cleanser | -1/Access | Archive M-13 Machinist | -1/Access | Archive M-28 Smith | -1/Access | Archive M-36 Artificer | -1/Access | Archive O-16 Technician | -1/Access | Archive O-24 Administrator | -1/Access | Archive O-32 Director | -1/Access | Archive W-16 Scout | -1/Access | Archive W-25 Informer | -1/Access | Archive W-44 Eye | -1/Access | Archive S-10 Pest | -1/Access | Archive S-27 Virus | -1/Access | Archive S-43 Plague | -1/Access | Archive G-34 Mercenary | -1/Access | Archive G-47 Trooper | -1/Access | Archive G-50 Soldier | -1/Access | Archive G-67 Veteran | -1/Access | Archive G-73 Enforcer | -1/Access | Archive B-36 Bruiser | -1/Access | Archive B-48 Gladiator | -1/Access | Archive B-60 Warrior | -1/Access | Archive B-74 Champion | -1/Access | Archive L-31 Rogue | -1/Access | Archive L-41 Fighter | -1/Access | Archive L-61 Swordsman | -1/Access | Archive Y-45 Defender | -1/Access | Archive Y-54 Guardian | -1/Access | Archive Y-64 Sentinel | -1/Access | Archive Y-72 Warden | -1/Access | Archive D-53 Grenadier | -1/Access | Archive D-63 Destroyer | -1/Access | Archive D-83 Annihilator | -1/Access | Archive X-57 Shotgunner | -1/Access | Archive X-62 Marksman | -1/Access | Archive X-67 Chaingunner | -1/Access | Archive X-72 Disruptor | -1/Access | Archive X-77 Beamer | -1/Access | Archive X-82 Rainmaker | -1/Access | Archive X-87 Electro | -1/Access | Archive H-55 Commando | -1/Access | Archive H-66 Slayer | -1/Access | Archive H-77 Assassin | -1/Access | Archive H-88 Terminator | -1/Access | Archive P-60 Hacker | -1/Access | Archive P-70 Sage | -1/Access | Archive P-80 Master | -1/Access | Archive Fabricated ------------ Cld. VTOL Module | x1 | -6/Factory Cld. VTOL Module | x1 | -6/Factory | Authchip Cld. VTOL Module | x1 | -6/Factory | Authchip Cld. VTOL Module | x1 | -6/Factory | Authchip Adv. Reaction Control System | x2 | -6/Factory | Preloaded Cld. VTOL Module | x1 | -5/Factory Repaired ---------- Lgt. Treads | 37% | -10/Materials Cld. Cesium-ion Thruster | 15% | -5/Factory Studied --------- Hvy. Assault Rifle | -9/Materials | Hacked Lgt. Deuterium Engine | -8/Materials | Hacked Chainsword | -6/Factory | Hacked Impulse Thruster Array | -4/Factory | Hacked Mic. Antimatter Reactor | -4/Factory | Hacked Enh. Nova Cannon | -3/Research | Hacked Lgt. Quantum Reactor | -2/Quarantine | Hacked Alien Tech Used ----------------- Integrated Dissipator Core Regenerator Matter Drive Dimensional Node Initializer Sigix Broadsword Terrabomb Subatomic Replicator Transdimensional Reconstructor High-powered Transdimensional Reconstructor Achievements -------------- None Challenges ------------ None Game ------ Seed PrecisionWarpLeg Manual? 0 Play Time 07:36:21 Cumulative 889.4 hours Start 2025.10.20 @ 18:02:55 End 2025.10.21 @ 20:00:39 Sessions 3 Manual Loads 0 Difficulty Rogue Special Mode None Game No. 281 Rogue 279 Adventurer 2 Explorer 0 Win Type 1 Total 58 Types 18/10/14/1/1/1/11/1/0/1 Lore% 96 Gallery% 94 Achievement% 74 Wizard Run 0 Options --------- Layout 0 ASCII 0 Keyboard 1 Movement Numpad Keybinds 0 Fullscreen 1 Font 24/Smallcaps Map View 76x50 Zoom Use 0% Tactical HUD 1 Map Filters NONE Filters NONE Steam 1 RUN: 70bebf2c-6ddb-4449-8308-efa6dad34379